{"text_format":"1","workbook":"xlsx","n_sheets":12,"sheets":["Contents","1.0 Business & other details","3.1 Revenue","3.2 Opex","3.2.3 Provisions","3.3 Assets (RAB)","3.4 Operational data","3.5 Physical assets","3.6 Quality of services","3.7 Operating environment","3.7.4 Weather stations","Unlocked worksheet"],"not_rendered":{"charts":0,"images":1,"macros":1,"external_links":2,"defined_names":22,"comments":0,"pivot_tables":0},"unopened":[],"bounds":{"document_bytes":16777216,"sheet_cells":100000,"rows_first":2000,"rows_last":500,"rows_between":2000,"halvings":0,"cell_chars":16384,"cell_head_chars":4096},"cells_cut":0,"cells_raw":0,"read":"whole","date_system":"1900"}

{"sheet":"Contents","index":0,"n_rows":12,"n_cols":2,"rows_kept":12,"cut":false,"hidden":false,"merged":[]}
[null,"REGULATORY REPORTING STATEMENT"]
[null,{"$f":"TradingName","v":"TasNetworks"}]
[null,{"$f":"CONCATENATE(\"Benchmarking RIN response \",CRY)","v":"Benchmarking RIN response 2013-14"}]
[]
[null,"CONTENTS"]
[]
[]
[]
[]
[]
[]
[null,"3.             ECONOMIC BENCHMARKING"]

{"sheet":"1.0 Business & other details","index":1,"n_rows":50,"n_cols":7,"rows_kept":50,"cut":false,"hidden":false,"merged":[[24,4,24,7],[8,1,8,8],[12,1,12,8],[15,2,15,4],[18,2,18,3],[18,4,18,7],[19,4,19,7],[20,2,20,3],[20,4,20,7],[23,2,23,3],[23,4,23,7],[31,2,31,3],[31,5,31,6],[48,2,48,8],[34,2,34,3],[25,2,25,3],[25,4,25,7],[29,2,29,3],[29,5,29,6],[30,2,30,3],[30,5,30,6]]}
[null,"REGULATORY REPORTING STATEMENT"]
[null,{"$f":"TradingName","v":"TasNetworks"}]
[null,{"$f":"CONCATENATE(\"Benchmarking RIN response \",CRY)","v":"Benchmarking RIN response 2013-14"}]
[null,"1.0 BUSINESS & OTHER DETAILS"]
[]
[]
[]
[null,"Instructions"]
[null,"Complete the following business details regulatory template before entering data or values in any other regulatory template. This regulatory template is linked to other cells within the spreadsheet and automatically generates column headings."]
[]
[null,"TABLE 1.2.1 - SUBMISSION PARTICULARS INPUT SHEET"]
[]
[null,"Entity details"]
[]
[null,"Trading name","TasNetworks"]
[null,"ACN / ABN",24167357299]
[]
[]
[null,"Business address","Address 1",null,"1-7 Maria Street"]
[null,null,null,"Address 2"]
[null,null,"Suburb",null,"Lenah Valley"]
[null,null,null,"State","Tas","p/code",7008]
[]
[null,"Postal address","Address 1",null,"PO Box 606"]
[null,null,null,"Address 2"]
[null,null,"Suburb",null,"Moonah"]
[null,null,null,"State","Tas","p/code",7009]
[]
[]
[null,"Contact name/s","Chantal Hopwood",null,null,"Michael Sward"]
[null,"Contact phone/s",400827037,null,null,362716343]
[null,"Contact email address/s","chantal.hopwood@tasnetworks.com.au",null,null,"michael.sward@tasnetworks.com.au"]
[]
[]
[null,"Regulatory year","Financial / Other"]
[null,null,"2013-14"]
[]
[]
[]
[null,"Sector","Electricity"]
[null,"Segment","Transmission"]
[null,"Source","Reporting"]
[null,"Regulatory Year ",2014]
[null,"Reporting Period Type","Financial Year"]
[null,"RIN Type","EB"]
[null,"Security Classification","Public"]
[null,"Estimated or actual","Consolidated Public"]
[null,"RIN response - version no.",1]
[null,"RIN response - amendment reason","Amendments to 3.2.3 Provisions: Superannuation, 3.6 Quality of services: System losses, and 3.7 Operating environment: Bushfire risk spans."]
[null,"RIN template - version no.",2]

{"sheet":"3.1 Revenue","index":2,"n_rows":37,"n_cols":8,"rows_kept":37,"cut":false,"hidden":false,"merged":[]}
[null,null,"REGULATORY REPORTING STATEMENT"]
[null,null,{"$f":"TradingName","v":"TasNetworks"}]
[null,null,{"$f":"CONCATENATE(\"Benchmarking RIN response \",CRY)","v":"Benchmarking RIN response 2013-14"}]
[null,null,"3.1 REVENUE"]
[]
[]
[null,null,null,null,"Actual\n($000s)"]
[null,null,null,null,{"$f":"CRY","v":"2013-14"}]
[]
[null,null,"TABLE 3.1.1 REVENUE GROUPING BY CHARGEABLE QUANTITY"]
["ET_REV3110_00001","TREV0101","From Fixed Customer (Exit Point) Charges",null,34903.292000000001]
["ET_REV3110_00002","TREV0102","From Variable Customer (Exit Point) Charges",null,0]
["ET_REV3110_00003","TREV0103","From Fixed Generator (Entry Point) Charges",null,16629.802]
["ET_REV3110_00004","TREV0104","From Variable Generator (Entry Point) Charges",null,0]
["ET_REV3110_00005","TREV0105","From Fixed Energy Usage Charges (Charge per day basis)",null,0]
["ET_REV3110_00006","TREV0106","From Variable Energy Usage charges (Charge per kWh basis)",null,16465.255000000001]
["ET_REV3110_00007","TREV0107","From Energy based Common Service and General Charges",null,12776.5]
["ET_REV3110_00008","TREV0108","From Fixed Demand based Usage Charges",null,129521.232]
["ET_REV3110_00009","TREV0109","From Variable Demand based Usage Charges",null,905.85299999999995]
["ET_REV3110_00010","TREV0110","Revenue from other Sources",null,3532.9266199999838]
[null,"TREV01","Total revenue by chargeable quantity","$'000",{"$f":"SUM(E11:E20)","v":214734.86061999999}]
[]
[]
[null,null,"TABLE 3.1.2 REVENUE GROUPING BY TYPE OF CONNECTED EQUIPMENT"]
["ET_REV3120_00001","TREV0201","From Other connected transmission networks",null,0]
["ET_REV3120_00002","TREV0202","From Distribution networks",null,125026.807]
["ET_REV3120_00003","TREV0203","From Directly connected end–users",null,69545.324999999997]
["ET_REV3120_00004","TREV0204","From Generators",null,16629.802]
["ET_REV3120_00005","TREV0205","Other revenue",null,3532.9266199999838]
[null,"TREV02","Total revenue by type of connected equipment","$'000",{"$f":"SUM(E25:E29)","v":214734.86061999996}]
[]
[null,null,null,null,null,null,null,"`"]
[null,null,"TABLE 3.1.3 REVENUE (penalties) ALLOWED (deducted) THROUGH INCENTIVE SCHEMES"]
["ET_REV3130_00001","TREV0301","EBSS",null,0]
["ET_REV3130_00002","TREV0302","STPIS",null,719.98199999999997]
["ET_REV3130_00003","TREV0303","Other",null,0]
[null,"TREV03","Total revenue of incentive schemes","$'000",{"$f":"SUM(E34:E36)","v":719.98199999999997}]

{"sheet":"3.2 Opex","index":3,"n_rows":195,"n_cols":5,"rows_kept":195,"cut":false,"hidden":false,"merged":[]}
[null,null,"REGULATORY REPORTING STATEMENT"]
[null,null,{"$f":"TradingName","v":"TasNetworks"}]
[null,null,{"$f":"CONCATENATE(\"Benchmarking RIN response \",CRY)","v":"Benchmarking RIN response 2013-14"}]
[null,null,"3.2 OPERATING EXPENDITURE"]
[]
[]
[null,null,"Instructions"]
[null,null,{"$f":"CONCATENATE(TradingName, \" must fill in opex in table 3.2.1 for opex categories reported in response to its annual reporting RIN.\")","v":"TasNetworks must fill in opex in table 3.2.1 for opex categories reported in response to its annual reporting RIN."}]
[]
[]
[]
[]
[null,null,null,null,"Actual\n($000's)"]
[null,null,null,null,{"$f":"CRY","v":"2013-14"}]
[]
[null,null,"TABLE 3.2.1 - OPEX CATEGORIES"]
[]
[null,null,"Table 3.2.1.1 Current opex categories  and cost allocations"]
[null,"TOPEX0101"]
[null,"TOPEX0102"]
[null,"TOPEX0103"]
[null,"TOPEX0104"]
[null,"TOPEX0105"]
[null,"TOPEX0106"]
[null,"TOPEX0107"]
[null,"TOPEX0108"]
[null,"TOPEX0109"]
[null,"TOPEX0110"]
[null,"TOPEX0111"]
[null,"TOPEX0112"]
[null,"TOPEX0113"]
[null,"TOPEX0114"]
[null,"TOPEX0115"]
[null,"TOPEX0116"]
[null,"TOPEX0117"]
[null,"TOPEX0118"]
[null,"TOPEX0119"]
[null,"TOPEX0120"]
[null,"TOPEX0121"]
[null,"TOPEX0122"]
[null,"TOPEX0123"]
[null,"TOPEX0124"]
[null,"TOPEX0125"]
[null,"TOPEX0126"]
[null,"TOPEX0127"]
[null,"TOPEX0128"]
[null,"TOPEX0129"]
[null,"TOPEX0130"]
[null,"TOPEX0131"]
[null,"TOPEX0132"]
[null,"TOPEX0133"]
[null,"TOPEX0134"]
[null,"TOPEX0135"]
[null,"TOPEX0136"]
[null,"TOPEX0137"]
[null,"TOPEX0138"]
[null,"TOPEX0139"]
[null,"TOPEX0140"]
[null,"TOPEX0141"]
["ET_OPX3211_99999","TOPEX01","Total opex ","($000's)",{"$f":"SUM(E18:E59)","v":0}]
[]
[null,null,"Table 3.2.1.2A - Historical opex categories and cost allocations",null,{"$f":"CRY","v":"2013-14"}]
[null,"TOPEX0101A","Field Operations and Maintenance",null,14640]
[null,"TOPEX0102A","Transmission Services",null,7920]
[null,"TOPEX0103A","Transmission Operations",null,4860]
[null,"TOPEX0104A","Asset Management",null,7850]
[null,"TOPEX0105A","Corporate",null,8400]
[null,"TOPEX0106A","Network Support",null,0]
[null,"TOPEX0107A","Insurance",null,1020]
[null,"TOPEX0108A","Self-Insurance",null,908]
[null,"TOPEX0109A"]
[null,"TOPEX0110A"]
[null,"TOPEX0111A"]
[null,"TOPEX0112A"]
[null,"TOPEX0113A"]
[null,"TOPEX0114A"]
[null,"TOPEX0115A"]
[null,"TOPEX0116A"]
[null,"TOPEX0117A"]
[null,"TOPEX0118A"]
[null,"TOPEX0119A"]
[null,"TOPEX0120A"]
[null,"TOPEX0121A"]
[null,"TOPEX0122A"]
[null,"TOPEX0123A"]
[null,"TOPEX0124A"]
[null,"TOPEX0125A"]
[null,"TOPEX0126A"]
[null,"TOPEX0127A"]
[null,"TOPEX0128A"]
[null,"TOPEX0129A"]
[null,"TOPEX0130A"]
[null,"TOPEX0131A"]
[null,"TOPEX0132A"]
[null,"TOPEX0133A"]
[null,"TOPEX0134A"]
[null,"TOPEX0135A"]
[null,"TOPEX0136A"]
[null,"TOPEX0137A"]
[null,"TOPEX0138A"]
[null,"TOPEX0139A"]
[null,"TOPEX0140A"]
[null,"TOPEX0141A"]
[null,"TOPEX0142A"]
["ET_OPX3211A_99999","TOPEX01A","Total opex ","($000's)",{"$f":"SUM(E63:E104)","v":45598}]
[]
[null,null,"Table 3.2.1.2B - Historical opex categories and cost allocations",null,{"$f":"CRY","v":"2013-14"}]
[null,"TOPEX0101B"]
[null,"TOPEX0102B"]
[null,"TOPEX0103B"]
[null,"TOPEX0104B"]
[null,"TOPEX0105B"]
[null,"TOPEX0106B"]
[null,"TOPEX0107B"]
[null,"TOPEX0108B"]
[null,"TOPEX0109B"]
[null,"TOPEX0110B"]
[null,"TOPEX0111B"]
[null,"TOPEX0112B"]
[null,"TOPEX0113B"]
[null,"TOPEX0114B"]
[null,"TOPEX0115B"]
[null,"TOPEX0116B"]
[null,"TOPEX0117B"]
[null,"TOPEX0118B"]
[null,"TOPEX0119B"]
[null,"TOPEX0120B"]
[null,"TOPEX0121B"]
[null,"TOPEX0122B"]
[null,"TOPEX0123B"]
[null,"TOPEX0124B"]
[null,"TOPEX0125B"]
[null,"TOPEX0126B"]
[null,"TOPEX0127B"]
[null,"TOPEX0128B"]
[null,"TOPEX0129B"]
[null,"TOPEX0130B"]
[null,"TOPEX0131B"]
[null,"TOPEX0132B"]
[null,"TOPEX0133B"]
[null,"TOPEX0134B"]
[null,"TOPEX0135B"]
[null,"TOPEX0136B"]
[null,"TOPEX0137B"]
[null,"TOPEX0138B"]
[null,"TOPEX0139B"]
[null,"TOPEX0140B"]
[null,"TOPEX0141B"]
[null,"TOPEX0142B"]
["ET_OPX3211B_99999","TOPEX01B","Total opex ","($000's)",{"$f":"SUM(E108:E149)","v":0}]
[]
[null,null,"Table 3.2.1.2C - Historical opex categories and cost allocations",null,{"$f":"CRY","v":"2013-14"}]
[null,"TOPEX0101C"]
[null,"TOPEX0102C"]
[null,"TOPEX0103C"]
[null,"TOPEX0104C"]
[null,"TOPEX0105C"]
[null,"TOPEX0106C"]
[null,"TOPEX0107C"]
[null,"TOPEX0108C"]
[null,"TOPEX0109C"]
[null,"TOPEX0110C"]
[null,"TOPEX0111C"]
[null,"TOPEX0112C"]
[null,"TOPEX0113C"]
[null,"TOPEX0114C"]
[null,"TOPEX0115C"]
[null,"TOPEX0116C"]
[null,"TOPEX0117C"]
[null,"TOPEX0118C"]
[null,"TOPEX0119C"]
[null,"TOPEX0120C"]
[null,"TOPEX0121C"]
[null,"TOPEX0122C"]
[null,"TOPEX0123C"]
[null,"TOPEX0124C"]
[null,"TOPEX0125C"]
[null,"TOPEX0126C"]
[null,"TOPEX0127C"]
[null,"TOPEX0128C"]
[null,"TOPEX0129C"]
[null,"TOPEX0130C"]
[null,"TOPEX0131C"]
[null,"TOPEX0132C"]
[null,"TOPEX0133C"]
[null,"TOPEX0134C"]
[null,"TOPEX0135C"]
[null,"TOPEX0136C"]
[null,"TOPEX0137C"]
[null,"TOPEX0138C"]
[null,"TOPEX0139C"]
[null,"TOPEX0140C"]
[null,"TOPEX0141C"]
[null,"TOPEX0142C"]
["ET_OPX3211C_99999","TOPEX01C","Total opex ","($000's)",{"$f":"SUM(E153:E194)","v":0}]

{"sheet":"3.2.3 Provisions","index":4,"n_rows":374,"n_cols":5,"rows_kept":374,"cut":false,"hidden":false,"merged":[]}
[null,null,"REGULATORY REPORTING STATEMENT"]
[null,null,{"$f":"TradingName","v":"TasNetworks"}]
[null,null,{"$f":"CONCATENATE(\"Benchmarking RIN response \",CRY)","v":"Benchmarking RIN response 2013-14"}]
[null,null,"3.2 OPERATING EXPENDITURE"]
[]
[]
[null,null,"Instructions"]
[null,null,{"$f":"CONCATENATE(TradingName, \" must fill in opex in table 3.2.3 for opex categories reported in response to its annual reporting RIN.\")","v":"TasNetworks must fill in opex in table 3.2.3 for opex categories reported in response to its annual reporting RIN."}]
[]
[null,null,"TABLE 3.2.3 - PROVISIONS"]
[null,null,"For each provision report:"]
[null,null,null,null,"$000s"]
[null,null,null,null,{"$f":"CRY","v":"2013-14"}]
[]
[null,"TOPEX03A","Annual Leave"]
[null,null,"Annual Leave"]
[null,"TOPEX0301A","Opening balance (the carrying amount at the beginning of the period)",null,3191.7914999999998]
[null,null,"Additional provisions made in the period, including increases to existing provisions"]
[null,"TOPEX0302A","Opex component",null,1551.2657952769123]
[null,"TOPEX0303A","Capex component",null,250.69049380437772]
[null,"TOPEX0304A","Other component"]
[null,null,"Amounts used (that is, incurred and charged against the provision) during the period"]
[null,"TOPEX0305A","Opex component",null,-1409.6698786322499]
[null,"TOPEX0306A","Capex component",null,-227.80805136774993]
[null,"TOPEX0307A","Other component"]
[null,null,"Unused amounts reversed during the period"]
[null,"TOPEX0308A","Opex component",null,0]
[null,"TOPEX0309A","Capex component",null,0]
[null,"TOPEX0310A","Other component"]
[null,null,"The increase during the period in the discounted amount arising from the passage of time and the effect of any change in the discount rate"]
[null,"TOPEX0311A","Opex component",null,15.087053939795126]
[null,"TOPEX0312A","Capex component",null,2.4381256995003731]
[null,"TOPEX0313A","Other component"]
[null,"TOPEX0314A","Closing balance (carrying amount at the end of the period)",null,3373.7950387205901]
[null,"TOPEX03B","Long Service Leave"]
[null,null,"Long Service Leave"]
[null,"TOPEX0301B","Opening balance (the carrying amount at the beginning of the period)",null,4335.2684464000004]
[null,null,"Additional provisions made in the period, including increases to existing provisions"]
[null,"TOPEX0302B","Opex component",null,977.88688423836732]
[null,"TOPEX0303B","Capex component",null,158.03026576163259]
[null,"TOPEX0304B","Other component"]
[null,null,"Amounts used (that is, incurred and charged against the provision) during the period"]
[null,"TOPEX0305B","Opex component",null,-233.47116547393398]
[null,"TOPEX0306B","Capex component",null,-37.729834526066028]
[null,"TOPEX0307B","Other component"]
[null,null,"Unused amounts reversed during the period"]
[null,"TOPEX0308B","Opex component",null,-167.32554162335313]
[null,"TOPEX0309B","Capex component",null,-27.040448376646847]
[null,"TOPEX0310B","Other component"]
[null,null,"The increase during the period in the discounted amount arising from the passage of time and the effect of any change in the discount rate"]
[null,"TOPEX0311B","Opex component",null,-408.50418190492502]
[null,"TOPEX0312B","Capex component",null,-66.015840350955727]
[null,"TOPEX0313B","Other component"]
[null,"TOPEX0314B","Closing balance (carrying amount at the end of the period)",null,4531.0985841441188]
[null,"TOPEX03C","Superannuation"]
[null,null,"Superannuation"]
[null,"TOPEX0301C","Opening balance (the carrying amount at the beginning of the period)",null,56498.620999999999]
[null,null,"Additional provisions made in the period, including increases to existing provisions"]
[null,"TOPEX0302C","Opex component",null,384.45512943882477]
[null,"TOPEX0303C","Capex component",null,62.129421365498857]
[null,"TOPEX0304C","Other component",null,2262.7130000000002]
[null,null,"Amounts used (that is, incurred and charged against the provision) during the period"]
[null,"TOPEX0305C","Opex component",null,-1149.3000446842896]
[null,"TOPEX0306C","Capex component",null,-185.73128899542755]
[null,"TOPEX0307C","Other component"]
[null,null,"Unused amounts reversed during the period"]
[null,"TOPEX0308C","Opex component",null,0]
[null,"TOPEX0309C","Capex component",null,0]
[null,"TOPEX0310C","Other component"]
[null,null,"The increase during the period in the discounted amount arising from the passage of time and the effect of any change in the discount rate"]
[null,"TOPEX0311C","Opex component",null,-351.06107691320881]
[null,"TOPEX0312C","Capex component",null,-56.732814579437658]
[null,"TOPEX0313C","Other component",null,8166.5929999999998]
[null,"TOPEX0314C","Closing balance (carrying amount at the end of the period)",null,65631.686000000002]
[null,"TOPEX03D","Other"]
[null,null,"Other"]
[null,"TOPEX0301D","Opening balance (the carrying amount at the beginning of the period)",null,764.96699999999976]
[null,null,"Additional provisions made in the period, including increases to existing provisions"]
[null,"TOPEX0302D","Opex component",null,592.66272265452164]
[null,"TOPEX0303D","Capex component",null,107.02553734547831]
[null,"TOPEX0304D","Other component"]
[null,null,"Amounts used (that is, incurred and charged against the provision) during the period"]
[null,"TOPEX0305D","Opex component",null,-1238.7489976235752]
[null,"TOPEX0306D","Capex component",null,-200.18658237642492]
[null,"TOPEX0307D","Other component"]
[null,null,"Unused amounts reversed during the period"]
[null,"TOPEX0308D","Opex component",null,-22.141524792374035]
[null,"TOPEX0309D","Capex component",null,-3.5781552076259651]
[null,"TOPEX0310D","Other component"]
[null,null,"The increase during the period in the discounted amount arising from the passage of time and the effect of any change in the discount rate"]
[null,"TOPEX0311D","Opex component",null,0]
[null,"TOPEX0312D","Capex component",null,0]
[null,"TOPEX0313D","Other component"]
[null,"TOPEX0314D","Closing balance (carrying amount at the end of the period)",null,2.9831426218152047E-13]
[null,"TOPEX03E","Provision name"]
[null,null,"Brief description of provision"]
[null,"TOPEX0301E","Opening balance (the carrying amount at the beginning of the period)"]
[null,null,"Additional provisions made in the period, including increases to existing provisions"]
[null,"TOPEX0302E","Opex component"]
[null,"TOPEX0303E","Capex component"]
[null,"TOPEX0304E","Other component"]
[null,null,"Amounts used (that is, incurred and charged against the provision) during the period"]
[null,"TOPEX0305E","Opex component"]
[null,"TOPEX0306E","Capex component"]
[null,"TOPEX0307E","Other component"]
[null,null,"Unused amounts reversed during the period"]
[null,"TOPEX0308E","Opex component"]
[null,"TOPEX0309E","Capex component"]
[null,"TOPEX0310E","Other component"]
[null,null,"The increase during the period in the discounted amount arising from the passage of time and the effect of any change in the discount rate"]
[null,"TOPEX0311E","Opex component"]
[null,"TOPEX0312E","Capex component"]
[null,"TOPEX0313E","Other component"]
[null,"TOPEX0314E","Closing balance (carrying amount at the end of the period)"]
[null,"TOPEX03F","Provision name"]
[null,null,"Brief description of provision"]
[null,"TOPEX0301F","Opening balance (the carrying amount at the beginning of the period)"]
[null,null,"Additional provisions made in the period, including increases to existing provisions"]
[null,"TOPEX0302F","Opex component"]
[null,"TOPEX0303F","Capex component"]
[null,"TOPEX0304F","Other component"]
[null,null,"Amounts used (that is, incurred and charged against the provision) during the period"]
[null,"TOPEX0305F","Opex component"]
[null,"TOPEX0306F","Capex component"]
[null,"TOPEX0307F","Other component"]
[null,null,"Unused amounts reversed during the period"]
[null,"TOPEX0308F","Opex component"]
[null,"TOPEX0309F","Capex component"]
[null,"TOPEX0310F","Other component"]
[null,null,"The increase during the period in the discounted amount arising from the passage of time and the effect of any change in the discount rate"]
[null,"TOPEX0311F","Opex component"]
[null,"TOPEX0312F","Capex component"]
[null,"TOPEX0313F","Other component"]
[null,"TOPEX0314F","Closing balance (carrying amount at the end of the period)"]
[null,"TOPEX03G","Provision name"]
[null,null,"Brief description of provision"]
[null,"TOPEX0301G","Opening balance (the carrying amount at the beginning of the period)"]
[null,null,"Additional provisions made in the period, including increases to existing provisions"]
[null,"TOPEX0302G","Opex component"]
[null,"TOPEX0303G","Capex component"]
[null,"TOPEX0304G","Other component"]
[null,null,"Amounts used (that is, incurred and charged against the provision) during the period"]
[null,"TOPEX0305G","Opex component"]
[null,"TOPEX0306G","Capex component"]
[null,"TOPEX0307G","Other component"]
[null,null,"Unused amounts reversed during the period"]
[null,"TOPEX0308G","Opex component"]
[null,"TOPEX0309G","Capex component"]
[null,"TOPEX0310G","Other component"]
[null,null,"The increase during the period in the discounted amount arising from the passage of time and the effect of any change in the discount rate"]
[null,"TOPEX0311G","Opex component"]
[null,"TOPEX0312G","Capex component"]
[null,"TOPEX0313G","Other component"]
[null,"TOPEX0314G","Closing balance (carrying amount at the end of the period)"]
[null,"TOPEX03H","Provision name"]
[null,null,"Brief description of provision"]
[null,"TOPEX0301H","Opening balance (the carrying amount at the beginning of the period)"]
[null,null,"Additional provisions made in the period, including increases to existing provisions"]
[null,"TOPEX0302H","Opex component"]
[null,"TOPEX0303H","Capex component"]
[null,"TOPEX0304H","Other component"]
[null,null,"Amounts used (that is, incurred and charged against the provision) during the period"]
[null,"TOPEX0305H","Opex component"]
[null,"TOPEX0306H","Capex component"]
[null,"TOPEX0307H","Other component"]
[null,null,"Unused amounts reversed during the period"]
[null,"TOPEX0308H","Opex component"]
[null,"TOPEX0309H","Capex component"]
[null,"TOPEX0310H","Other component"]
[null,null,"The increase during the period in the discounted amount arising from the passage of time and the effect of any change in the discount rate"]
[null,"TOPEX0311H","Opex component"]
[null,"TOPEX0312H","Capex component"]
[null,"TOPEX0313H","Other component"]
[null,"TOPEX0314H","Closing balance (carrying amount at the end of the period)"]
[null,"TOPEX03I","Provision name"]
[null,null,"Brief description of provision"]
[null,"TOPEX0301I","Opening balance (the carrying amount at the beginning of the period)"]
[null,null,"Additional provisions made in the period, including increases to existing provisions"]
[null,"TOPEX0302I","Opex component"]
[null,"TOPEX0303I","Capex component"]
[null,"TOPEX0304I","Other component"]
[null,null,"Amounts used (that is, incurred and charged against the provision) during the period"]
[null,"TOPEX0305I","Opex component"]
[null,"TOPEX0306I","Capex component"]
[null,"TOPEX0307I","Other component"]
[null,null,"Unused amounts reversed during the period"]
[null,"TOPEX0308I","Opex component"]
[null,"TOPEX0309I","Capex component"]
[null,"TOPEX0310I","Other component"]
[null,null,"The increase during the period in the discounted amount arising from the passage of time and the effect of any change in the discount rate"]
[null,"TOPEX0311I","Opex component"]
[null,"TOPEX0312I","Capex component"]
[null,"TOPEX0313I","Other component"]
[null,"TOPEX0314I","Closing balance (carrying amount at the end of the period)"]
[null,"TOPEX03J","Provision name"]
[null,null,"Brief description of provision"]
[null,"TOPEX0301J","Opening balance (the carrying amount at the beginning of the period)"]
[null,null,"Additional provisions made in the period, including increases to existing provisions"]
[null,"TOPEX0302J","Opex component"]
[null,"TOPEX0303J","Capex component"]
[null,"TOPEX0304J","Other component"]
[null,null,"Amounts used (that is, incurred and charged against the provision) during the period"]
[null,"TOPEX0305J","Opex component"]
[null,"TOPEX0306J","Capex component"]
[null,"TOPEX0307J","Other component"]
[null,null,"Unused amounts reversed during the period"]
[null,"TOPEX0308J","Opex component"]
[null,"TOPEX0309J","Capex component"]
[null,"TOPEX0310J","Other component"]
[null,null,"The increase during the period in the discounted amount arising from the passage of time and the effect of any change in the discount rate"]
[null,"TOPEX0311J","Opex component"]
[null,"TOPEX0312J","Capex component"]
[null,"TOPEX0313J","Other component"]
[null,"TOPEX0314J","Closing balance (carrying amount at the end of the period)"]
[null,"TOPEX03K","Provision name"]
[null,null,"Brief description of provision"]
[null,"TOPEX0301K","Opening balance (the carrying amount at the beginning of the period)"]
[null,null,"Additional provisions made in the period, including increases to existing provisions"]
[null,"TOPEX0302K","Opex component"]
[null,"TOPEX0303K","Capex component"]
[null,"TOPEX0304K","Other component"]
[null,null,"Amounts used (that is, incurred and charged against the provision) during the period"]
[null,"TOPEX0305K","Opex component"]
[null,"TOPEX0306K","Capex component"]
[null,"TOPEX0307K","Other component"]
[null,null,"Unused amounts reversed during the period"]
[null,"TOPEX0308K","Opex component"]
[null,"TOPEX0309K","Capex component"]
[null,"TOPEX0310K","Other component"]
[null,null,"The increase during the period in the discounted amount arising from the passage of time and the effect of any change in the discount rate"]
[null,"TOPEX0311K","Opex component"]
[null,"TOPEX0312K","Capex component"]
[null,"TOPEX0313K","Other component"]
[null,"TOPEX0314K","Closing balance (carrying amount at the end of the period)"]
[null,"TOPEX03L","Provision name"]
[null,null,"Brief description of provision"]
[null,"TOPEX0301L","Opening balance (the carrying amount at the beginning of the period)"]
[null,null,"Additional provisions made in the period, including increases to existing provisions"]
[null,"TOPEX0302L","Opex component"]
[null,"TOPEX0303L","Capex component"]
[null,"TOPEX0304L","Other component"]
[null,null,"Amounts used (that is, incurred and charged against the provision) during the period"]
[null,"TOPEX0305L","Opex component"]
[null,"TOPEX0306L","Capex component"]
[null,"TOPEX0307L","Other component"]
[null,null,"Unused amounts reversed during the period"]
[null,"TOPEX0308L","Opex component"]
[null,"TOPEX0309L","Capex component"]
[null,"TOPEX0310L","Other component"]
[null,null,"The increase during the period in the discounted amount arising from the passage of time and the effect of any change in the discount rate"]
[null,"TOPEX0311L","Opex component"]
[null,"TOPEX0312L","Capex component"]
[null,"TOPEX0313L","Other component"]
[null,"TOPEX0314L","Closing balance (carrying amount at the end of the period)"]
[null,"TOPEX03M","Provision name"]
[null,null,"Brief description of provision"]
[null,"TOPEX0301M","Opening balance (the carrying amount at the beginning of the period)"]
[null,null,"Additional provisions made in the period, including increases to existing provisions"]
[null,"TOPEX0302M","Opex component"]
[null,"TOPEX0303M","Capex component"]
[null,"TOPEX0304M","Other component"]
[null,null,"Amounts used (that is, incurred and charged against the provision) during the period"]
[null,"TOPEX0305M","Opex component"]
[null,"TOPEX0306M","Capex component"]
[null,"TOPEX0307M","Other component"]
[null,null,"Unused amounts reversed during the period"]
[null,"TOPEX0308M","Opex component"]
[null,"TOPEX0309M","Capex component"]
[null,"TOPEX0310M","Other component"]
[null,null,"The increase during the period in the discounted amount arising from the passage of time and the effect of any change in the discount rate"]
[null,"TOPEX0311M","Opex component"]
[null,"TOPEX0312M","Capex component"]
[null,"TOPEX0313M","Other component"]
[null,"TOPEX0314M","Closing balance (carrying amount at the end of the period)"]
[null,"TOPEX03N","Provision name"]
[null,null,"Brief description of provision"]
[null,"TOPEX0301N","Opening balance (the carrying amount at the beginning of the period)"]
[null,null,"Additional provisions made in the period, including increases to existing provisions"]
[null,"TOPEX0302N","Opex component"]
[null,"TOPEX0303N","Capex component"]
[null,"TOPEX0304N","Other component"]
[null,null,"Amounts used (that is, incurred and charged against the provision) during the period"]
[null,"TOPEX0305N","Opex component"]
[null,"TOPEX0306N","Capex component"]
[null,"TOPEX0307N","Other component"]
[null,null,"Unused amounts reversed during the period"]
[null,"TOPEX0308N","Opex component"]
[null,"TOPEX0309N","Capex component"]
[null,"TOPEX0310N","Other component"]
[null,null,"The increase during the period in the discounted amount arising from the passage of time and the effect of any change in the discount rate"]
[null,"TOPEX0311N","Opex component"]
[null,"TOPEX0312N","Capex component"]
[null,"TOPEX0313N","Other component"]
[null,"TOPEX0314N","Closing balance (carrying amount at the end of the period)"]
[null,"TOPEX03O","Provision name"]
[null,null,"Brief description of provision"]
[null,"TOPEX0301O","Opening balance (the carrying amount at the beginning of the period)"]
[null,null,"Additional provisions made in the period, including increases to existing provisions"]
[null,"TOPEX0302O","Opex component"]
[null,"TOPEX0303O","Capex component"]
[null,"TOPEX0304O","Other component"]
[null,null,"Amounts used (that is, incurred and charged against the provision) during the period"]
[null,"TOPEX0305O","Opex component"]
[null,"TOPEX0306O","Capex component"]
[null,"TOPEX0307O","Other component"]
[null,null,"Unused amounts reversed during the period"]
[null,"TOPEX0308O","Opex component"]
[null,"TOPEX0309O","Capex component"]
[null,"TOPEX0310O","Other component"]
[null,null,"The increase during the period in the discounted amount arising from the passage of time and the effect of any change in the discount rate"]
[null,"TOPEX0311O","Opex component"]
[null,"TOPEX0312O","Capex component"]
[null,"TOPEX0313O","Other component"]
[null,"TOPEX0314O","Closing balance (carrying amount at the end of the period)"]
[null,"TOPEX03P","Provision name"]
[null,null,"Brief description of provision"]
[null,"TOPEX0301P","Opening balance (the carrying amount at the beginning of the period)"]
[null,null,"Additional provisions made in the period, including increases to existing provisions"]
[null,"TOPEX0302P","Opex component"]
[null,"TOPEX0303P","Capex component"]
[null,"TOPEX0304P","Other component"]
[null,null,"Amounts used (that is, incurred and charged against the provision) during the period"]
[null,"TOPEX0305P","Opex component"]
[null,"TOPEX0306P","Capex component"]
[null,"TOPEX0307P","Other component"]
[null,null,"Unused amounts reversed during the period"]
[null,"TOPEX0308P","Opex component"]
[null,"TOPEX0309P","Capex component"]
[null,"TOPEX0310P","Other component"]
[null,null,"The increase during the period in the discounted amount arising from the passage of time and the effect of any change in the discount rate"]
[null,"TOPEX0311P","Opex component"]
[null,"TOPEX0312P","Capex component"]
[null,"TOPEX0313P","Other component"]
[null,"TOPEX0314P","Closing balance (carrying amount at the end of the period)"]
[null,"TOPEX03Q","Provision name"]
[null,null,"Brief description of provision"]
[null,"TOPEX0301Q","Opening balance (the carrying amount at the beginning of the period)"]
[null,null,"Additional provisions made in the period, including increases to existing provisions"]
[null,"TOPEX0302Q","Opex component"]
[null,"TOPEX0303Q","Capex component"]
[null,"TOPEX0304Q","Other component"]
[null,null,"Amounts used (that is, incurred and charged against the provision) during the period"]
[null,"TOPEX0305Q","Opex component"]
[null,"TOPEX0306Q","Capex component"]
[null,"TOPEX0307Q","Other component"]
[null,null,"Unused amounts reversed during the period"]
[null,"TOPEX0308Q","Opex component"]
[null,"TOPEX0309Q","Capex component"]
[null,"TOPEX0310Q","Other component"]
[null,null,"The increase during the period in the discounted amount arising from the passage of time and the effect of any change in the discount rate"]
[null,"TOPEX0311Q","Opex component"]
[null,"TOPEX0312Q","Capex component"]
[null,"TOPEX0313Q","Other component"]
[null,"TOPEX0314Q","Closing balance (carrying amount at the end of the period)"]
[null,"TOPEX03R","Provision name"]
[null,null,"Brief description of provision"]
[null,"TOPEX0301R","Opening balance (the carrying amount at the beginning of the period)"]
[null,null,"Additional provisions made in the period, including increases to existing provisions"]
[null,"TOPEX0302R","Opex component"]
[null,"TOPEX0303R","Capex component"]
[null,"TOPEX0304R","Other component"]
[null,null,"Amounts used (that is, incurred and charged against the provision) during the period"]
[null,"TOPEX0305R","Opex component"]
[null,"TOPEX0306R","Capex component"]
[null,"TOPEX0307R","Other component"]
[null,null,"Unused amounts reversed during the period"]
[null,"TOPEX0308R","Opex component"]
[null,"TOPEX0309R","Capex component"]
[null,"TOPEX0310R","Other component"]
[null,null,"The increase during the period in the discounted amount arising from the passage of time and the effect of any change in the discount rate"]
[null,"TOPEX0311R","Opex component"]
[null,"TOPEX0312R","Capex component"]
[null,"TOPEX0313R","Other component"]
[null,"TOPEX0314R","Closing balance (carrying amount at the end of the period)"]

{"sheet":"3.3 Assets (RAB)","index":5,"n_rows":94,"n_cols":5,"rows_kept":94,"cut":false,"hidden":false,"merged":[]}
[null,null,"REGULATORY REPORTING STATEMENT"]
[null,null,{"$f":"TradingName","v":"TasNetworks"}]
[null,null,{"$f":"CONCATENATE(\"Benchmarking RIN response \",CRY)","v":"Benchmarking RIN response 2013-14"}]
[null,null,"3.3 ASSETS"]
[]
[]
[null,null,null,null,"Actual\n($ 000s)"]
[null,null,null,null,{"$f":"CRY","v":"2013-14"}]
[]
[null,null,"TABLE 3.3.1 - REGULATORY ASSET BASE VALUES"]
[null,null,"For total asset base:"]
["ET_RAB3310_00001","TRAB0101","Opening value",null,1235836]
["ET_RAB3310_00002","TRAB0102","Inflation addition",null,36478.556462304688]
["ET_RAB3310_00003","TRAB0103","Straight line depreciation",null,-61434.606590000003]
["ET_RAB3310_00004","TRAB0104","Regulatory depreciation",null,{"$f":"SUM(E14+E13)","v":-24956.050127695315}]
["ET_RAB3310_00005","TRAB0105","Actual additions (recognised in RAB)",null,174694.62803962029]
["ET_RAB3310_00006","TRAB0106","Disposals ",null,-244.25943000000001]
["ET_RAB3310_00007","TRAB0107","Closing value for overhead distribution asset value","$'000",{"$f":"SUM(E12+E13+E14+E16+E17)","v":1385330.3184819249}]
[]
[]
[null,null,"TABLE 3.3.2 - ASSET VALUE ROLL FORWARD"]
[null,null,"For overhead transmission assets:"]
["ET_RAB3321_00001","TRAB0201","Opening value",null,400240.55791000003]
["ET_RAB3321_00002","TRAB0202","Inflation addition",null,11651.766375593234]
["ET_RAB3321_00003","TRAB0203","Straight line depreciation",null,-18359.288211999996]
["ET_RAB3321_00004","TRAB0204","Regulatory depreciation",null,{"$f":"SUM(E25+E24)","v":-6707.5218364067623}]
["ET_RAB3321_00005","TRAB0205","Actual additions (recognised in RAB)",null,95646.140456821944]
["ET_RAB3321_00006","TRAB0206","Disposals ",null,0]
["ET_RAB3321_00007","TRAB0207","Closing value for overhead distribution asset value","$'000",{"$f":"SUM(E23+E24+E25+E27+E28)","v":489179.17653041525}]
[null,null,"For underground transmission assets:"]
["ET_RAB3322_00001","TRAB0301","Opening value",null,32695.723540000003]
["ET_RAB3322_00002","TRAB0302","Inflation addition",null,929.73137000000054]
["ET_RAB3322_00003","TRAB0303","Straight line depreciation",null,-1373.7676599999998]
["ET_RAB3322_00004","TRAB0304","Regulatory depreciation",null,{"$f":"SUM(E33+E32)","v":-444.03628999999921}]
["ET_RAB3322_00005","TRAB0305","Actual additions (recognised in RAB)",null,-951.94081999999923]
["ET_RAB3322_00006","TRAB0306","Disposals ",null,0]
["ET_RAB3322_00007","TRAB0307","Closing value for overhead distribution asset value","$'000",{"$f":"SUM(E31+E32+E33+E35+E36)","v":31299.746429999999}]
[null,null,"For transmission switchyards, substations"]
["ET_RAB3323_00001","TRAB0401","Opening value",null,636316.80479000008]
["ET_RAB3323_00002","TRAB0402","Inflation addition",null,18744.145193379234]
["ET_RAB3323_00003","TRAB0403","Straight line depreciation",null,-35673.151488000003]
["ET_RAB3323_00004","TRAB0404","Regulatory depreciation",null,{"$f":"SUM(E41+E40)","v":-16929.006294620769}]
["ET_RAB3323_00005","TRAB0405","Actual additions (recognised in RAB)",null,50362.26049309643]
["ET_RAB3323_00006","TRAB0406","Disposals ",null,0]
["ET_RAB3323_00007","TRAB0407","Closing value for overhead distribution asset value","$'000",{"$f":"SUM(E39+E40+E41+E43+E44)","v":669750.05898847571}]
[null,null,"For easements:"]
["ET_RAB3324_00001","TRAB0501","Opening value",null,98030]
["ET_RAB3324_00002","TRAB0502","Inflation addition",null,3144.5119319819814]
["ET_RAB3324_00003","TRAB0503","Straight line depreciation",null,0]
["ET_RAB3324_00004","TRAB0504","Regulatory depreciation",null,{"$f":"SUM(E49+E48)","v":3144.5119319819814}]
["ET_RAB3324_00005","TRAB0505","Actual additions (recognised in RAB)",null,0]
["ET_RAB3324_00006","TRAB0506","Disposals ",null,0]
["ET_RAB3324_00007","TRAB0507","Closing value for overhead distribution asset value","$'000",{"$f":"SUM(E47+E48+E49+E51+E52)","v":101174.51193198198}]
[null,null,"For “other” assets with long lives:"]
["ET_RAB3325_00001","TRAB0601","Opening value",null,57573]
["ET_RAB3325_00002","TRAB0602","Inflation addition",null,1686.7264014718817]
["ET_RAB3325_00003","TRAB0603","Straight line depreciation",null,-2182.7271300000002]
["ET_RAB3325_00004","TRAB0604","Regulatory depreciation",null,{"$f":"SUM(E57+E56)","v":-496.00072852811854}]
["ET_RAB3325_00005","TRAB0605","Actual additions (recognised in RAB)",null,13348.859908685601]
["ET_RAB3325_00006","TRAB0606","Disposals ",null,-230]
["ET_RAB3325_00007","TRAB0607","Closing value for overhead distribution asset value","$'000",{"$f":"SUM(E55+E56+E57+E59+E60)","v":70195.85918015748}]
[null,null,"For “other” assets with short lives:"]
["ET_RAB3326_00001","TRAB0701","Opening value",null,10980]
["ET_RAB3326_00002","TRAB0702","Inflation addition",null,321.67518987835501]
["ET_RAB3326_00003","TRAB0703","Straight line depreciation",null,-3845.6721000000002]
["ET_RAB3326_00004","TRAB0704","Regulatory depreciation",null,{"$f":"SUM(E65+E64)","v":-3523.9969101216452}]
["ET_RAB3326_00005","TRAB0705","Actual additions (recognised in RAB)",null,16289.308001016334]
["ET_RAB3326_00006","TRAB0706","Disposals ",null,-14.25943]
["ET_RAB3326_00007","TRAB0707","Closing value for overhead distribution asset value","$'000",{"$f":"SUM(E63+E64+E65+E67+E68)","v":23731.051660894693}]
[]
[]
[null,null,"TABLE 3.3.3 - TOTAL DISAGGREGATED RAB ASSET VALUES"]
["ET_RAB3330_00001","TRAB0801","Overhead transmission assets (wires and towers/poles etc)",null,444709.86722020764]
["ET_RAB3330_00002","TRAB0802","Underground transmission assets (cables, ducts etc)",null,31997.734985000003]
["ET_RAB3330_00003","TRAB0803","Substations, switchyards, Transformers etc with transmission function",null,653033.43188923784]
["ET_RAB3330_00004","TRAB0804","Easements",null,99602.255965990989]
["ET_RAB3330_00005","TRAB0805","Other assets with long lives (please specify)",null,63884.42959007874]
["ET_RAB3330_00006","TRAB0806","Other assets with short lives (please specify)","$'000",17355.525830447346]
[]
[]
[null,null,"TABLE 3.3.4 - ASSET LIVES",null,"Service Life \n(Years)"]
[null,null,"3.3.4.1 Asset Lives – estimated service life of new assets",null,{"$f":"CRY","v":"2013-14"}]
["ET_RAB3341_00001","TRAB0901","Overhead transmission assets ",null,56.901189433433103]
["ET_RAB3341_00002","TRAB0902","Underground transmission assets",null,46.51897972821115]
["ET_RAB3341_00003","TRAB0903","Switchyard, substation and transformer assets",null,40.838572976857947]
["ET_RAB3341_00004","TRAB0904","“Other” assets with long lives",null,32.649173459366708]
["ET_RAB3341_00005","TRAB0905","“Other assets with short lives",null,4.7378427071938463]
[]
[null,null,"3.3.4.2 Asset Lives – estimated residual service life"]
["ET_RAB3342_00001","TRAB1001","Overhead transmission assets ",null,43.748472810308556]
["ET_RAB3342_00002","TRAB1002","Underground transmission assets",null,38.044667849364913]
["ET_RAB3342_00003","TRAB1003","Switchyard, substation and transformer assets",null,32.743387837853383]
["ET_RAB3342_00004","TRAB1004","Other assets with long lives",null,26.897662592892896]
["ET_RAB3342_00005","TRAB1005","Other assets with short lives",null,4.0393860579364089]

{"sheet":"3.4 Operational data","index":6,"n_rows":89,"n_cols":5,"rows_kept":89,"cut":false,"hidden":false,"merged":[]}
[null,null,"REGULATORY REPORTING STATEMENT"]
[null,null,{"$f":"TradingName","v":"TasNetworks"}]
[null,null,{"$f":"CONCATENATE(\"Benchmarking RIN response \",CRY)","v":"Benchmarking RIN response 2013-14"}]
[null,null,"3.4 OPERATIONAL DATA"]
[]
[]
[]
[null,null,null,null,"Actual"]
[null,null,null,null,{"$f":"CRY","v":"2013-14"}]
[null,null,null,"Units"]
[null,null,"TABLE 3.4.1 - ENERGY DELIVERY"]
[null,null,"Energy Grouping by Downstream Connection type"]
["ET_OPD3410_00001","TOPED0101","To Other connected transmission networks","GWh",3315.788474]
["ET_OPD3410_00002","TOPED0102","To Distribution networks","GWh",4193.7177300000003]
["ET_OPD3410_00004","TOPED0103","To Directly connected end–users (330 kV)","GWh",0]
["ET_OPD3410_00005","TOPED0104","To Directly connected end–users (275 kV)","GWh",0]
["ET_OPD3410_00006","TOPED0105","To Directly connected end–users (220 kV)","GWh",2819.8409999999999]
["ET_OPD3410_00007","TOPED0106","To Directly connected end–users (132 kV)","GWh",0]
["ET_OPD3410_00008","TOPED0107","To Directly connected end–users (110 kV)","GWh",886.51170000000002]
["ET_OPD3410_00009","TOPED0108","To Directly connected end–users (44 kV) ","GWh",102.3805]
["ET_OPD3410_00010","TOPED0109","To Directly connected end–users (33 kV)","GWh",0]
["ET_OPD3410_00011","TOPED0110","To Directly connected end–users (22 kV)","GWh",242.47280000000001]
["ET_OPD3410_00012","TOPED0111","To Directly connected end–users (11 kV)","GWh",1111.9169999999999]
["ET_OPD3410_00013","TOPED0112","To Directly connected end–users (6.6 kV)","GWh",627.48159999999996]
["ET_OPD3410_00014","TOPED0113","Pumping and Power Station Auxillaries","GWh",59.853000000000002]
[null,"TOPED01","Total energy transported","GWh",{"$f":"SUM(E13:E25)","v":13359.963803999997}]
[]
[]
[null,null,"TABLE 3.4.2 -  CONNECTION POINTS"]
[null,null,"Number of entry points at each transmission voltage level"]
["ET_OPD3421_00001","TOPCP0101","500kV","number",0]
["ET_OPD3421_00002","TOPCP0102","330kV","number",0]
["ET_OPD3421_00003","TOPCP0103","275kV","number",0]
["ET_OPD3421_00004","TOPCP0104","220kV","number",13]
["ET_OPD3421_00005","TOPCP0105","132 kV","number",0]
["ET_OPD3421_00006","TOPCP0106","110kV","number",13]
["ET_OPD3421_00007","TOPCP0107","66 kV","number",0]
["ET_OPD3421_00008","TOPCP0108","33 kV","number",0]
["ET_OPD3421_00009","TOPCP0109","22 kV","number",0]
["ET_OPD3421_00010","TOPCP0110","11 kV","number",0]
["ET_OPD3421_00010","TOPCP0111","6.6 kV","number",0]
[]
[null,null,"Number of exit points at each transmission voltage level "]
["ET_OPD3422_00001","TOPCP0201","500kV","number",0]
["ET_OPD3422_00002","TOPCP0202","330kV","number",0]
["ET_OPD3422_00003","TOPCP0203","275kV","number",0]
["ET_OPD3422_00004","TOPCP0204","220kV","number",2]
["ET_OPD3422_00005","TOPCP0205","132 kV","number",0]
["ET_OPD3422_00006","TOPCP0206","110kV","number",3]
["ET_OPD3422_00007","TOPCP0207","66 kV","number",0]
["ET_OPD3422_00008","TOPCP0208","44 kV","number",1]
["ET_OPD3422_00009","TOPCP0209","33kV","number",5]
["ET_OPD3422_00010","TOPCP0210","22kV","number",28]
["ET_OPD3422_00011","TOPCP0211","11kV","number",14]
["ET_OPD3422_00012","TOPCP0212","6.6kV","number",3]
[]
[]
[null,null,"TABLE 3.4.3 - SYSTEM DEMAND"]
[null,null,"Table 3.4.3.1 Annual system maximum demand characteristics – MW measure"]
["ET_OPD3431_00001","TOPSD0101","Transmission System coincident maximum demand","MW",2132]
["ET_OPD3431_00002","TOPSD0102","Transmission System coincident weather adjusted maximum demand 10% POE","MW",2149.5219999999999]
["ET_OPD3431_00003","TOPSD0103","Transmission System coincident weather adjusted maximum demand 50% POE","MW",2141.864]
["ET_OPD3431_00004","TOPSD0104","Transmission System non-coincident summated maximum demand","MW",2449]
["ET_OPD3431_00005","TOPSD0105","Transmission System non-coincident weather adjusted summated maximum demand 10% POE","MW",2519.9520000000002]
["ET_OPD3431_00006","TOPSD0106","Transmission System non-coincident weather adjusted summated maximum demand 50% POE","MW",2484.98]
[]
[null,null,"Table 3.4.3.2 Annual system maximum demand characteristics – MVA measure"]
["ET_OPD3432_00001","TOPSD0201","Transmission System coincident maximum demand","MVA",2146]
["ET_OPD3432_00002","TOPSD0202","Transmission System coincident weather adjusted maximum demand 10% POE","MVA",2271.5529999999999]
["ET_OPD3432_00003","TOPSD0203","Transmission System coincident weather adjusted maximum demand 50% POE","MVA",2233.2800000000002]
["ET_OPD3432_00004","TOPSD0204","Transmission System non-coincident summated maximum demand","MVA",2509]
["ET_OPD3432_00005","TOPSD0205","Transmission System non-coincident weather adjusted summated maximum demand 10% POE","MVA",2581.1880000000001]
["ET_OPD3432_00006","TOPSD0206","Transmission System non-coincident weather adjusted summated maximum demand 50% POE","MVA",2545.6469999999999]
[]
[null,null,"Table 3.4.3.3 Power factor"]
[null,null,"Power factor conversion between MVA and MW"]
["ET_OPD3433_00001","TOPSD0301","Average overall network power factor conversion between MVA and MW","Factor",0.98599999999999999]
["ET_OPD3433_00002","TOPSD0302","Average power factor conversion for 500 kV lines","Factor"]
["ET_OPD3433_00003","TOPSD0303","Average power factor conversion for 330 kV lines","Factor"]
["ET_OPD3433_00004","TOPSD0304","Average power factor conversion for  275 kV lines","Factor"]
["ET_OPD3433_00005","TOPSD0305","Average power factor conversion for  220 kV lines","Factor",0.98899999999999999]
["ET_OPD3433_00006","TOPSD0306","Average power factor conversion for  132 kV lines","Factor"]
["ET_OPD3433_00007","TOPSD0307","Average power factor conversion for  110 kV lines","Factor",0.98899999999999999]
["ET_OPD3433_00008","TOPSD0308","Average power factor conversion for  88 kV lines","Factor"]
["ET_OPD3433_00009","TOPSD0309","Average power factor conversion for  66 kV lines","Factor"]
["ET_OPD3433_00010","TOPSD0310","Average power factor conversion for  33 kV lines","Factor"]
["ET_OPD3433_00011","TOPSD0311","Average power factor conversion for  22 kV lines","Factor"]
["ET_OPD3433_00011","TOPSD0311","Average power factor conversion for  11 kV lines","Factor"]
[null,"TOPSD0312","Average power factor conversion for  6.6 kV lines","Factor"]

{"sheet":"3.5 Physical assets","index":7,"n_rows":74,"n_cols":5,"rows_kept":74,"cut":false,"hidden":false,"merged":[]}
[null,null,"REGULATORY REPORTING STATEMENT"]
[null,null,{"$f":"TradingName","v":"TasNetworks"}]
[null,null,{"$f":"CONCATENATE(\"Benchmarking RIN response \",CRY)","v":"Benchmarking RIN response 2013-14"}]
[null,null,"3.5 PHYSICAL ASSETS"]
[]
[]
[null,null,null,null,"Actual"]
[null,null,null,null,{"$f":"CRY","v":"2013-14"}]
[null,null,null,"Unit"]
[null,null,"TABLE 3.5.1 - TRANSMISSION SYSTEM CAPACITIES "]
[null,null,"Table 3.5.1.1 Overhead network length of circuit at each voltage"]
["ET_PHA3511_00001","TPA0101","500 kV","km",0]
["ET_PHA3511_00002","TPA0102","330 kV","km",0]
["ET_PHA3511_00003","TPA0103","275 kV","km",0]
["ET_PHA3511_00004","TPA0104","220 kV","km",1670]
["ET_PHA3511_00005","TPA0105","132 kV","km",0]
["ET_PHA3511_00006","TPA0106","110 kV","km",1810]
["ET_PHA3511_00007","TPA0107","88 kV","km",0]
["ET_PHA3511_00008","TPA0108","66 kV","km",0]
["ET_PHA3511_00009","TPA0109","33 kV","km",0]
["ET_PHA3511_00009","TPA0109","22 kV","km",0]
["ET_PHA3511_00009","TPA0109","11 kV","km",0]
[null,"TPA01","Total overhead circuit kilometres","km",{"$f":"SUM(E12:E22)","v":3480}]
[]
[null,null,"Table 3.5.1.2 Underground cable circuit length at each voltage"]
["ET_PHA3512_00001","TPA0201","500 kV","km",0]
["ET_PHA3512_00002","TPA0202","330 kV","km",0]
["ET_PHA3512_00003","TPA0203","275 kV","km",0]
["ET_PHA3512_00004","TPA0204","220 kV","km",0]
["ET_PHA3512_00005","TPA0205","132 kV","km",0]
["ET_PHA3512_00006","TPA0206","110 kV","km",23.8]
["ET_PHA3511_00007","TPA0207","88 kV","km",0]
["ET_PHA3512_00007","TPA0208","66 kV","km",0]
["ET_PHA3512_00008","TPA0209","33 kV","km",0]
["ET_PHA3512_00007","TPA0210","22 kV","km",0]
["ET_PHA3512_00008","TPA0211","11 kV","km",0]
[null,"TPA02","Total underground circuit kilometres","km",{"$f":"SUM(E26:E34)","v":23.8}]
[]
[null,"TPA0301","Table 3.5.1.3 Estimated overhead network weighted average MVA capacity by voltage class"]
["ET_PHA3513_00001","TPA0302","500 kV","MVA",0]
["ET_PHA3513_00002","TPA0303","330 kV","MVA",0]
["ET_PHA3513_00003","TPA0304","275 kV","MVA",0]
["ET_PHA3513_00004","TPA0305","220 kV","MVA",397.6]
["ET_PHA3513_00005","TPA0306","132 kV","MVA",0]
["ET_PHA3513_00006","TPA0307","110 kV","MVA",105.8]
["ET_PHA3513_00007","TPA0308","88 kV","MVA",0]
["ET_PHA3513_00008","TPA0309","66 kV","MVA",0]
["ET_PHA3513_00009","TPA0310","33 kV","MVA",0]
["ET_PHA3513_00008","TPA0311","22 kV","MVA",0]
["ET_PHA3513_00009","TPA0312","11 kV","MVA",0]
[]
[null,null,"Table 3.5.1.4 Estimated underground network weighted average MVA capacity by voltage class"]
["ET_PHA3514_00001","TPA0401","500 kV","MVA",0]
["ET_PHA3514_00002","TPA0402","330 kV","MVA",0]
["ET_PHA3514_00003","TPA0403","275 kV","MVA",0]
["ET_PHA3514_00004","TPA0404","220 kV","MVA",0]
["ET_PHA3514_00005","TPA0405","132 kV","MVA",0]
["ET_PHA3514_00006","TPA0406","110 kV","MVA",141.9]
["ET_PHA3514_00007","TPA0407","88 kV","MVA",0]
["ET_PHA3514_00006","TPA0408","66 kV","MVA",0]
["ET_PHA3514_00007","TPA0409","33 kV","MVA",0]
["ET_PHA3514_00008","TPA0410","22 kV","MVA",0]
[null,"TPA0411","11 kV",null,0]
[]
[null,null,"Table 3.5.1.5 Installed transmission system transformer capacity"]
["ET_PHA3515_00001","TPA0501","Transmission substations (eg 500 kV to 330 kV)","MVA",3640]
["ET_PHA3515_00002","TPA0502","Terminal points to DNSP systems","MVA",3339]
["ET_PHA3515_00003","TPA0503","Transformer capacity for directly connected end–users owned by the TNSP","MVA",605]
["ET_PHA3515_00004","TPA0504","Transformer capacity for directly connected end–users owned by the end–user","MVA",467]
["ET_PHA3515_00005","TPA0505","Interconnector capacity","MVA",555]
["ET_PHA3515_00010","TPA0506","Other","MVA",0]
[]
[null,null,"Table 3.5.1.6 Cold spare capacity"]
["ET_PHA3516_00001","TPA06","Cold spare capacity included in Table 3.5.1.5","MVA",370]

{"sheet":"3.6 Quality of services","index":8,"n_rows":60,"n_cols":5,"rows_kept":60,"cut":false,"hidden":false,"merged":[]}
[null,null,"REGULATORY REPORTING STATEMENT"]
[null,null,{"$f":"TradingName","v":"TasNetworks"}]
[null,null,{"$f":"CONCATENATE(\"Benchmarking RIN response \",CRY)","v":"Benchmarking RIN response 2013-14"}]
[null,null,"3.6 QUALITY OF SERVICE DATA"]
[]
[]
[null,null,null,null,"Actual"]
[null,null,null,null,{"$f":"CONCATENATE(\"Calendar Year \", RegYearCalendar)","v":"Calendar Year 2014"}]
[null,null,null,"Unit"]
[null,null,"TABLE 3.6.1 - SERVICE COMPONENT"]
[null,null,"Table 3.6.1.1 Service Parameter 1 – Average Circuit outage rate"]
["ET_QOS3611_00001","TQS0101","Lines outage rate - fault","%"]
["ET_QOS3611_00002","TQS0102","Number of Lines fault outages","number"]
["ET_QOS3611_00003","TQS0103","Number of defined Lines","number"]
["ET_QOS3611_00004","TQS0104","Transformers outage rate - fault","%"]
["ET_QOS3611_00005","TQS0105","Number of Transformer fault outages","number"]
["ET_QOS3611_00006","TQS0106","Number of defined Transformers","number"]
["ET_QOS3611_00007","TQS0107","Reactive plant outage rate - fault","%"]
["ET_QOS3611_00008","TQS0108","Number of Reactive plant fault outages","number"]
["ET_QOS3611_00009","TQS0109","Number of defined Reactive plant","number"]
["ET_QOS3611_00010","TQS0110","Lines outage rate – forced outage","%"]
["ET_QOS3611_00011","TQS0111","Number of Lines forced outages","number"]
["ET_QOS3611_00012","TQS0112","Transformer outage rate – forced outage","%"]
["ET_QOS3611_00013","TQS0113","Number of Transformers forced outages","number"]
["ET_QOS3611_00014","TQS0114","Reactive plant outage rate – forced outage","%"]
["ET_QOS3611_00015","TQS0115","Number of Reactive plant forced outages","number"]
[]
[null,null,"Table 3.6.1.2 Service Parameter 2 – Loss of supply event frequency – number in ranges specified"]
["ET_QOS3612_00001","TQS0116","Number of events greater than 0.05 system minutes per annum (X)","number"]
["ET_QOS3612_00002","TQS0117","Number of events greater than 0.1 system minutes per annum (X)","number"]
["ET_QOS3612_00003","TQS0118","Number of events greater than 0.2 system minutes per annum (X)","number"]
["ET_QOS3612_00004","TQS0119","Number of events greater than 0.25 system minutes per annum (X)","number"]
["ET_QOS3612_00005","TQS0120","Number of events greater than 0.30 system minutes per annum (X)","number"]
["ET_QOS3612_00006","TQS0121","Number of events greater than 0.5 system minutes per annum (X)","number"]
["ET_QOS3612_00007","TQS0122","Number of events greater than 0.75 system minutes per annum (X)","number"]
["ET_QOS3612_00008","TQS0123","Number of events greater than 1.0 system minutes per annum (X)","number"]
["ET_QOS3612_00009","TQS0124","Number of events greater than 0.05 system minutes per annum (Y)","number"]
["ET_QOS3612_00010","TQS0125","Number of events greater than 0.1 system minutes per annum (Y)","number"]
["ET_QOS3612_00011","TQS0126","Number of events greater than 0.2 system minutes per annum (Y)","number"]
["ET_QOS3612_00012","TQS0127","Number of events greater than 0.25 system minutes per annum (Y)","number"]
["ET_QOS3612_00013","TQS0128","Number of events greater than 0.30 system minutes per annum (Y)","number"]
["ET_QOS3612_00014","TQS0129","Number of events greater than 0.5 system minutes per annum (Y)","number"]
["ET_QOS3612_00015","TQS0130","Number of events greater than 0.75 system minutes per annum (Y)","number"]
["ET_QOS3612_00016","TQS0131","Number of events greater than 1.0 system minutes per annum (Y)","number"]
[]
[null,null,"Table 3.6.1.3 Service Parameter 3 – Average outage duration"]
["ET_QOS3613_00001","TQS0118","Average outage duration ","minutes"]
[]
[null,null,"Table  3.6.1.4 System Parameter 4 – Proper operation of equipment – number of failure events"]
["ET_QOS3614_00001","TQS0119","Failure of protection system","number"]
["ET_QOS3614_00002","TQS0120","Material failure of Supervisory Control and Data Acquisition (SCADA) system","number"]
["ET_QOS3614_00003","TQS0121","Incorrect operational isolation of primary or secondary equipment","number"]
[]
[]
[null,null,"TABLE 3.6.2 - MARKET IMPACT COMPONENT"]
["ET_QOS3620_00001","TQS02","Market Impact Parameter","Number of dispatch intervals"]
[]
[]
[null,null,"TABLE 3.6.3 - SYSTEM LOSSES"]
["ET_QOS3630_00001","TQS03","System losses","%",2.7E-2]

{"sheet":"3.7 Operating environment","index":9,"n_rows":24,"n_cols":5,"rows_kept":24,"cut":false,"hidden":false,"merged":[[9,2,9,4],[19,2,19,4]]}
[null,null,"REGULATORY REPORTING STATEMENT"]
[null,null,{"$f":"TradingName","v":"TasNetworks"}]
[null,null,{"$f":"CONCATENATE(\"Benchmarking RIN response \",CRY)","v":"Benchmarking RIN response 2013-14"}]
[null,null,"3.7 OPERATING ENVIRONMENT FACTORS"]
[]
[]
[null,null,null,null,"Actual"]
[null,null,null,null,{"$f":"CRY","v":"2013-14"}]
[null,null,null,"Unit"]
[null,"TEF01","TABLE 3.7.1 - TERRAIN FACTORS"]
["ET_OEF3710_00001","TEF0101","Total number of vegetation maintenance spans","Number of spans",919]
["ET_OEF3710_00002","TEF0102","Average vegetation maintenance span cycle","Years",5]
["ET_OEF3710_00003","TEF0103","Average number of trees per vegetation maintenance span","Trees",1543]
["ET_OEF3710_00004","TEF0104","Average number of defects per vegetation maintenance span","Defects",1]
["ET_OEF3710_00005","TEF0105","Tropical proportion","Number of spans",0]
["ET_OEF3710_00006","TEF0106","Standard vehicle access","km",2302]
["ET_OEF3710_00007","TEF0107","Altitude","km",492]
["ET_OEF3710_00008","TEF0108","Bushfire risk","Number of spans",209]
[]
[null,"TEF02","TABLE 3.7.2 - NETWORK CHARACTERISTICS"]
["ET_OEF3720_00001","TEF0201","Route line length","km",2336]
["ET_OEF3720_00002","TEF0202","Variability of dispatch","%",0.93]
["ET_OEF3720_00003","TEF0203","Concentrated load distance","km",319]
["ET_OEF3720_00004","TEF0204","Total number of spans","number",7800]

{"sheet":"3.7.4 Weather stations","index":10,"n_rows":1100,"n_cols":6,"rows_kept":1100,"cut":false,"hidden":false,"merged":[]}
[null,null,"REGULATORY REPORTING STATEMENT"]
[null,null,{"$f":"TradingName","v":"TasNetworks"}]
[null,null,{"$f":"CONCATENATE(\"Benchmarking RIN response \",CRY)","v":"Benchmarking RIN response 2013-14"}]
[null,null,"3.7 OPERATING ENVIRONMENT FACTORS"]
[]
[]
[null,null,"TABLE 3.7.4  - WEATHER STATIONS"]
[]
[null,null,"Weather Station ID","Post code","Suburb","Materiality"]
["ED_OEF374_00001",null,91313,7310,"ABERDEEN (MELROSE ROAD)","Yes"]
["ED_OEF374_00002",null,94236,7150,"ADVENTURE BAY (BLIGH MUSEUM)","No"]
["ED_OEF374_00003",null,94159,7150,"ADVENTURE BAY (FORESTRY)","No"]
["ED_OEF374_00004",null,94070,7150,"ALONNAH AREA SCHOOL","No"]
["ED_OEF374_00005",null,92129,7264,"ANSONS BAY","No"]
["ED_OEF374_00006",null,92001,7190,"APSLAWN","No"]
["ED_OEF374_00007",null,97045,7116,"ARVE VALLEY (ARVE ROAD)","Yes"]
["ED_OEF374_00008",null,92002,7213,"AVOCA (RAILWAY HOUSE)","Yes"]
["ED_OEF374_00009",null,99025,7255,"BADGER CORNER","No"]
["ED_OEF374_00010",null,91153,7306,"BARRINGTON POST OFFICE","Yes"]
["ED_OEF374_00011",null,91001,7270,"BEACONSFIELD (MINE & HERITAGE CENTRE)","Yes"]
["ED_OEF374_00012",null,92113,7215,"BEAUMARIS (SKYLINE DRIVE)","No"]
["ED_OEF374_00013",null,94182,7027,"BELOW CRAIGBOURNE DAM (COAL RIVER)","Yes"]
["ED_OEF374_00014",null,92003,7215,"BICHENO (COUNCIL DEPOT)","No"]
["ED_OEF374_00015",null,92160,7215,"BICHENO (DENISON RIVER)","No"]
["ED_OEF374_00016",null,93046,7120,"BIRRALEE CREEK","No"]
["ED_OEF374_00017",null,94163,7052,"BLACKMANS BAY TREATMENT PLANT","Yes"]
["ED_OEF374_00018",null,91002,7301,"BLACKWOOD CREEK (KOPANICA)","Yes"]
["ED_OEF374_00019",null,91364,7321,"BOAT HARBOUR","Yes"]
["ED_OEF374_00020",null,98029,7256,"BOB LAGOON","No"]
["ED_OEF374_00021",null,95005,7030,"BOTHWELL (CLUNY)","Yes"]
["ED_OEF374_00022",null,95046,7030,"BOTHWELL (CLYDE RIVER)","Yes"]
["ED_OEF374_00023",null,95001,7030,"BOTHWELL (FRANKLIN STREET)","Yes"]
["ED_OEF374_00024",null,91284,7262,"BRIDPORT (SEA VIEW VILLAS)","No"]
["ED_OEF374_00025",null,96002,7140,"BRONTE HEIGHTS","Yes"]
["ED_OEF374_00026",null,92155,7190,"BUCKLAND (BROCKLEY ROAD)","Yes"]
["ED_OEF374_00027",null,92006,7190,"BUCKLAND (BROCKLEY)","Yes"]
["ED_OEF374_00028",null,92128,7190,"BUCKLAND (KENT STREET)","Yes"]
["ED_OEF374_00029",null,94235,7190,"BUCKLAND (PULCHELLA)","Yes"]
["ED_OEF374_00030",null,94166,7150,"BULL BAY (LAURISTON)","Yes"]
["ED_OEF374_00031",null,91355,7320,"BURNIE (PARK GROVE)","Yes"]
["ED_OEF374_00032",null,91009,7320,"BURNIE (ROUND HILL)","Yes"]
["ED_OEF374_00033",null,91225,7212,"BURNS CREEK (JANEFIELD)","Yes"]
["ED_OEF374_00034",null,95003,7140,"BUSHY PARK (BUSHY PARK ESTATES)","Yes"]
["ED_OEF374_00035",null,96003,7140,"BUTLERS GORGE","Yes"]
["ED_OEF374_00036",null,94212,7026,"CAMPANIA (KINCORA)","Yes"]
["ED_OEF374_00037",null,93033,7210,"CAMPBELL TOWN (ELIZABETH R)","Yes"]
["ED_OEF374_00038",null,94198,7150,"CAPE BRUNY (CAPE BRUNY)","No"]
["ED_OEF374_00039",null,94010,7150,"CAPE BRUNY LIGHTHOUSE","No"]
["ED_OEF374_00040",null,91331,7330,"CAPE GRIM","No"]
["ED_OEF374_00041",null,91245,7330,"CAPE GRIM BAPS (COMPARISON)","No"]
["ED_OEF374_00042",null,97000,7468,"CAPE SORELL","No"]
["ED_OEF374_00043",null,94245,7109,"CATAMARAN","No"]
["ED_OEF374_00044",null,98000,7256,"CITY OF MELBOURNE BAY","No"]
["ED_OEF374_00045",null,94258,7011,"CLAREMONT (GILLIES ROAD)","Yes"]
["ED_OEF374_00046",null,94257,7020,"CLIFTON BEACH (CLIFTON BEACH ROAD TBRG)","Yes"]
["ED_OEF374_00047",null,94260,7027,"COLEBROOK (DANIELS ROAD)","Yes"]
["ED_OEF374_00048",null,94014,7027,"COLEBROOK (THE MEADOWS)","No"]
["ED_OEF374_00049",null,92153,7174,"COPPING (YAXLEY ESTATE)","No"]
["ED_OEF374_00050",null,97023,7321,"CORINNA","Yes"]
["ED_OEF374_00051",null,92064,7215,"CORNWALL","Yes"]
["ED_OEF374_00052",null,91263,7258,"CORRA LINN (NORTH ESK RIVER)","Yes"]
["ED_OEF374_00053",null,94249,7109,"CRABTREE (STONEY CREEK FARM)","Yes"]
["ED_OEF374_00054",null,91306,7302,"CRESSY RESEARCH STATION","Yes"]
["ED_OEF374_00055",null,91022,7302,"CRESSY RESEARCH STATION (MAIN OFFICE)","Yes"]
["ED_OEF374_00056",null,98032,7256,"CURRIE (FRASER ROAD)","No"]
["ED_OEF374_00057",null,98011,7256,"CURRIE (MAIN STREET)","No"]
["ED_OEF374_00058",null,94219,7112,"CYGNET (SYNOTTS ROAD)","Yes"]
["ED_OEF374_00059",null,91077,7212,"DEDDINGTON (MARATHON)","No"]
["ED_OEF374_00060",null,91326,7212,"DEDDINGTON (NILE RIVER)","No"]
["ED_OEF374_00061",null,91278,7304,"DELORAINE (REEDY MARSH)","Yes"]
["ED_OEF374_00062",null,91227,7304,"DELORAINE RAILWAY BRIDGE (MEANDER RIVER)","Yes"]
["ED_OEF374_00063",null,94255,7150,"DENNES POINT","Yes"]
["ED_OEF374_00064",null,96069,7140,"DERWENT BRIDGE","Yes"]
["ED_OEF374_00065",null,91255,7275,"DEVIOT JETTY","Yes"]
["ED_OEF374_00066",null,91126,7307,"DEVONPORT AIRPORT","Yes"]
["ED_OEF374_00067",null,94221,7173,"DODGES FERRY","Yes"]
["ED_OEF374_00068",null,94020,7117,"DOVER","Yes"]
["ED_OEF374_00069",null,94254,7177,"DUNALLEY (STROUD POINT)","No"]
["ED_OEF374_00070",null,91029,7304,"DUNORLAN (SHARMANS ROAD)","Yes"]
["ED_OEF374_00071",null,94071,7179,"EAGLEHAWK NECK (JETTY ROAD)","No"]
["ED_OEF374_00072",null,91357,7330,"EDITH CREEK (BIRTHDAY CREEK)","Yes"]
["ED_OEF374_00073",null,95033,7140,"ELLENDALE POST OFFICE","Yes"]
["ED_OEF374_00074",null,91032,7211,"EPPING FOREST (FORTON)","Yes"]
["ED_OEF374_00075",null,91312,7310,"ERRIBA (JUBB ROAD)","Yes"]
["ED_OEF374_00076",null,91118,7212,"EVANDALE (CAMBOCK LANE)","Yes"]
["ED_OEF374_00077",null,95064,7140,"FENTONBURY (HAMLET DOWNS)","Yes"]
["ED_OEF374_00078",null,94139,7054,"FERN TREE (GRAYS ROAD)","Yes"]
["ED_OEF374_00079",null,92012,7214,"FINGAL (LEGGE STREET)","Yes"]
["ED_OEF374_00080",null,99005,7255,"FLINDERS ISLAND AIRPORT","No"]
["ED_OEF374_00081",null,94022,7022,"FORT DIRECTION","Yes"]
["ED_OEF374_00082",null,94213,7182,"FORTESCUE BAY","No"]
["ED_OEF374_00083",null,91186,7310,"FORTHSIDE RESEARCH STATION","Yes"]
["ED_OEF374_00084",null,93059,7210,"FOSTERVILLE","Yes"]
["ED_OEF374_00085",null,91033,7275,"FRANKFORD (ROSSVILLE)","Yes"]
["ED_OEF374_00086",null,94261,7113,"FRANKLIN (SOUTH)","Yes"]
["ED_OEF374_00087",null,92114,7215,"FRIENDLY BEACHES","No"]
["ED_OEF374_00088",null,94137,7116,"GEEVESTON (CEMETERY ROAD)","Yes"]
["ED_OEF374_00089",null,94116,7116,"GEEVESTON (RIAWUNNA)","Yes"]
["ED_OEF374_00090",null,91286,7253,"GEORGE TOWN (SOUTH STREET)","Yes"]
["ED_OEF374_00091",null,92014,7215,"GERMAN TOWN","Yes"]
["ED_OEF374_00092",null,92011,7264,"GLADSTONE (OLD POST OFFICE)","No"]
["ED_OEF374_00093",null,94104,7109,"GLAZIERS BAY","Yes"]
["ED_OEF374_00094",null,95072,7140,"GLENFERN (HOMEBUSH)","Yes"]
["ED_OEF374_00095",null,91351,7303,"GLENGARRY (GINNS ROAD)","Yes"]
["ED_OEF374_00096",null,91341,7275,"GLENGARRY (HUNDRED ACRE WOOD)","Yes"]
["ED_OEF374_00097",null,94025,7010,"GLENORCHY (GLENORCHY RESERVOIR)","Yes"]
["ED_OEF374_00098",null,91290,7304,"GOLDEN VALLEY (BRODIES ROAD)","Yes"]
["ED_OEF374_00099",null,91322,7306,"GOWRIE PARK (O'NEILLS ROAD)","Yes"]
["ED_OEF374_00100",null,98031,7256,"GRASSY (CURRIE RD)","No"]
["ED_OEF374_00101",null,92141,7215,"GRAY (DALMAYNE RD)","Yes"]
["ED_OEF374_00102",null,92159,7215,"GRAY (HAVEN OF HOPE)","Yes"]
["ED_OEF374_00103",null,91340,7277,"GRINDELWALD","Yes"]
["ED_OEF374_00104",null,92149,7190,"GRINDSTONE POINT","Yes"]
["ED_OEF374_00105",null,94220,7109,"GROVE (RESEARCH STATION)","Yes"]
["ED_OEF374_00106",null,91315,7290,"HADSPEN","Yes"]
["ED_OEF374_00107",null,94191,7116,"HARTZ MOUNTAIN (KEOGHS PIMPLE)","Yes"]
["ED_OEF374_00108",null,96070,7030,"HERMITAGE (SHANNON RIVER)","Yes"]
["ED_OEF374_00109",null,91041,7252,"HILLWOOD (HILLWOODVILLE)","Yes"]
["ED_OEF374_00110",null,94029,7000,"HOBART (ELLERSLIE ROAD)","Yes"]
["ED_OEF374_00111",null,94008,7170,"HOBART AIRPORT","Yes"]
["ED_OEF374_00112",null,91325,7302,"HUMMOCKY HILLS","Yes"]
["ED_OEF374_00113",null,94089,7109,"HUONVILLE (TUTTON AVENUE)","Yes"]
["ED_OEF374_00114",null,91366,7304,"JACKEYS MARSH","Yes"]
["ED_OEF374_00115",null,93002,7030,"JERICHO (BOWSDEN)","No"]
["ED_OEF374_00116",null,94179,7109,"JUDBURY (HUON RIVER)","Yes"]
["ED_OEF374_00117",null,91266,7304,"KIMBERLEY (MERSEY RIVER)","Yes"]
["ED_OEF374_00118",null,91149,7304,"KIMBERLEY (SIDING)","Yes"]
["ED_OEF374_00119",null,98017,7256,"KING ISLAND AIRPORT","No"]
["ED_OEF374_00120",null,94222,7050,"KINGSTON (GREENHILL DRIVE)","Yes"]
["ED_OEF374_00121",null,99002,7255,"LADY BARRON (FRANKLIN PARADE)","No"]
["ED_OEF374_00122",null,92019,7210,"LAKE LEAKE (ELIZABETH RIVER)","No"]
["ED_OEF374_00123",null,92146,7210,"LAKE LEAKE (FWS)","No"]
["ED_OEF374_00124",null,97020,7467,"LAKE MARGARET POWER STATION","Yes"]
["ED_OEF374_00125",null,96071,7140,"LAKE ST CLAIR NATIONAL PARK","Yes"]
["ED_OEF374_00126",null,92045,7264,"LARAPUNA (EDDYSTONE POINT)","No"]
["ED_OEF374_00127",null,91048,7307,"LATROBE (COAL ROAD)","Yes"]
["ED_OEF374_00128",null,91237,7248,"LAUNCESTON (TI TREE BEND)","Yes"]
["ED_OEF374_00129",null,91311,7212,"LAUNCESTON AIRPORT","Yes"]
["ED_OEF374_00130",null,91275,7277,"LEGANA (UNA VILLAS)","Yes"]
["ED_OEF374_00131",null,94239,7054,"LESLIE VALE","Yes"]
["ED_OEF374_00132",null,94097,7120,"LEVENDALE","Yes"]
["ED_OEF374_00133",null,92020,7213,"LEWIS HILL (ST PAULS RIVER)","Yes"]
["ED_OEF374_00134",null,96033,7030,"LIAWENEE","Yes"]
["ED_OEF374_00135",null,91346,7268,"LILYDALE (TORWOOD)","Yes"]
["ED_OEF374_00136",null,91053,7268,"LILYDALE POST OFFICE","Yes"]
["ED_OEF374_00137",null,92154,7190,"LITTLE SWANPORT (LISDILLON FARM)","No"]
["ED_OEF374_00138",null,93044,7213,"LLEWELLYN (SOUTH ESK RIVER)","Yes"]
["ED_OEF374_00139",null,91054,7301,"LONGFORD (DENTON CLOSE)","Yes"]
["ED_OEF374_00140",null,94231,7150,"LONGLEY (RIVER BEND ROAD)","Yes"]
["ED_OEF374_00141",null,94151,7150,"LONGLEY (TELOPEA)","Yes"]
["ED_OEF374_00142",null,91321,7315,"LOONGANA (SERENDIPITY)","Yes"]
["ED_OEF374_00143",null,91055,7306,"LORINNA","Yes"]
["ED_OEF374_00144",null,91293,7253,"LOW HEAD","Yes"]
["ED_OEF374_00145",null,97080,7139,"LOW ROCKY POINT","No"]
["ED_OEF374_00146",null,94175,7109,"LUCASTON (BAKERS CREEK ROAD)","Yes"]
["ED_OEF374_00147",null,94039,7150,"LUNAWANNA","No"]
["ED_OEF374_00148",null,91259,7321,"LUNCHEON HILL (FORESTRY)","No"]
["ED_OEF374_00149",null,94040,7109,"LYMINGTON (FATTYS LANE)","Yes"]
["ED_OEF374_00150",null,92124,7190,"MARIA ISLAND (POINT LESUEUR)","Yes"]
["ED_OEF374_00151",null,91223,7330,"MARRAWAH","No"]
["ED_OEF374_00152",null,92106,7214,"MATHINNA (SOUTH ESK RIVER)","No"]
["ED_OEF374_00153",null,94143,7030,"MAURICETON (JORDAN RIVER)","Yes"]
["ED_OEF374_00154",null,95063,7140,"MAYDENA POST OFFICE","Yes"]
["ED_OEF374_00155",null,91267,7304,"MEANDER (MEANDER RIVER)","Yes"]
["ED_OEF374_00156",null,94201,7030,"MELTON MOWBRAY (NORTH STOCKMAN)","Yes"]
["ED_OEF374_00157",null,99014,7255,"MEMANA (BABEL FARM)","No"]
["ED_OEF374_00158",null,94043,7163,"MIDDLETON POST OFFICE","Yes"]
["ED_OEF374_00159",null,98026,7256,"MILLERS BAY","No"]
["ED_OEF374_00160",null,91065,7304,"MOLE CREEK","Yes"]
["ED_OEF374_00161",null,95069,7140,"MOLESWORTH (GLEN DHU ROAD)","Yes"]
["ED_OEF374_00162",null,92144,7214,"MONAMETA  (MATHINNA RD)","Yes"]
["ED_OEF374_00163",null,91338,7268,"MOUNT ARTHUR SUMMIT","Yes"]
["ED_OEF374_00164",null,91198,7259,"MOUNT BARROW (SOUTH BARROW)","Yes"]
["ED_OEF374_00165",null,95076,7140,"MOUNT LLOYD","Yes"]
["ED_OEF374_00166",null,93052,7209,"MOUNT MORRISTON (MACQUARIE RIVER)","No"]
["ED_OEF374_00167",null,97085,7470,"MOUNT READ","Yes"]
["ED_OEF374_00168",null,93049,7120,"MOUNT SEYMOUR","No"]
["ED_OEF374_00169",null,91194,7214,"MOUNT VICTORIA (UNA PLAIN)","No"]
["ED_OEF374_00170",null,94087,7054,"MOUNT WELLINGTON","Yes"]
["ED_OEF374_00171",null,98004,7256,"NARACOOPA","No"]
["ED_OEF374_00172",null,95081,7140,"NEW NORFOLK (WEST)","Yes"]
["ED_OEF374_00173",null,94185,7054,"NIERINNA (CUTHBERTS ROAD)","Yes"]
["ED_OEF374_00174",null,91039,7307,"NORTHDOWN (HAMLEY)","Yes"]
["ED_OEF374_00175",null,92158,7172,"NUGENT (TWILIGHT VALLEY TBRG)","Yes"]
["ED_OEF374_00176",null,92099,7172,"NUGENT (TWILIGHT VALLEY)","Yes"]
["ED_OEF374_00177",null,91271,7259,"NUNAMARA OFFTAKE (ST PATRICKS RIVER)","Yes"]
["ED_OEF374_00178",null,93014,7120,"OATLANDS POST OFFICE","No"]
["ED_OEF374_00179",null,94048,7023,"OPOSSUM BAY","Yes"]
["ED_OEF374_00180",null,92027,7190,"ORFORD (AUBIN COURT)","Yes"]
["ED_OEF374_00181",null,92028,7190,"ORFORD SOUTH","Yes"]
["ED_OEF374_00182",null,94130,7172,"ORIELTON (EAST ORIELTON ROAD)","Yes"]
["ED_OEF374_00183",null,95016,7140,"OSTERLEY","Yes"]
["ED_OEF374_00184",null,95012,7140,"OUSE (MILLBROOK)","Yes"]
["ED_OEF374_00185",null,95048,7140,"OUSE FIRE STATION","Yes"]
["ED_OEF374_00186",null,98030,7256,"PEGARAH","No"]
["ED_OEF374_00187",null,91167,7300,"PERTH (FORESTRY NURSERY)","Yes"]
["ED_OEF374_00188",null,97076,7139,"PICTON VALLEY (SPUR 1 ROAD)","Yes"]
["ED_OEF374_00189",null,92030,7264,"PIONEER (MAIN ROAD)","Yes"]
["ED_OEF374_00190",null,91348,7252,"PIPERS RIVER (BAY OF FIRES)","Yes"]
["ED_OEF374_00191",null,96081,7302,"POATINA","Yes"]
["ED_OEF374_00192",null,94244,7182,"PORT ARTHUR (STEWARTS BAY)","No"]
["ED_OEF374_00193",null,94053,7185,"PREMAYDENA HATCHERY","No"]
["ED_OEF374_00194",null,91360,7315,"PRESTON","Yes"]
["ED_OEF374_00195",null,92051,7216,"PYENGANA (FOREST LODGE ROAD)","Yes"]
["ED_OEF374_00196",null,91288,7304,"QUAMBY BLUFF","Yes"]
["ED_OEF374_00197",null,97091,7467,"QUEENSTOWN (SOUTH QUEENSTOWN)","Yes"]
["ED_OEF374_00198",null,91332,7305,"RAILTON (DOWBIGGIN STREET)","Yes"]
["ED_OEF374_00199",null,91359,7330,"REDPA (LINNANES ROAD)","No"]
["ED_OEF374_00200",null,91317,7258,"RELBIA (JOSEF CHROMY WINES)","Yes"]
["ED_OEF374_00201",null,97021,7469,"RENISON BELL","Yes"]
["ED_OEF374_00202",null,94012,7025,"RICHMOND (LOWLANDS)","Yes"]
["ED_OEF374_00203",null,94177,7025,"RICHMOND (STRATHAYR)","Yes"]
["ED_OEF374_00204",null,91086,7263,"RINGAROOMA (CHARLES STREET)","Yes"]
["ED_OEF374_00205",null,94210,7019,"ROKEBY (GRANGE ROAD EAST)","Yes"]
["ED_OEF374_00206",null,97089,7470,"ROSEBERY (GEPP STREET)","Yes"]
["ED_OEF374_00207",null,93051,7209,"ROSS (MACQUARIE RIVER)","No"]
["ED_OEF374_00208",null,93053,7209,"ROSS (THE BOULEVARDS)","No"]
["ED_OEF374_00209",null,93040,7030,"ROTHERWOOD","Yes"]
["ED_OEF374_00210",null,94061,7020,"SANDFORD (MAYDENA)","Yes"]
["ED_OEF374_00211",null,97047,7321,"SAVAGE RIVER MINE","Yes"]
["ED_OEF374_00212",null,97083,7139,"SCOTTS PEAK DAM","No"]
["ED_OEF374_00213",null,91219,7260,"SCOTTSDALE (WEST MINSTONE ROAD)","Yes"]
["ED_OEF374_00214",null,91090,7292,"SELBOURNE (KIRNBRAE)","Yes"]
["ED_OEF374_00215",null,94091,7170,"SEVEN MILE BEACH (ROYAL HOBART GOLF CLUB","Yes"]
["ED_OEF374_00216",null,91291,7306,"SHEFFIELD SCHOOL FARM","Yes"]
["ED_OEF374_00217",null,91292,7330,"SMITHTON AERODROME","Yes"]
["ED_OEF374_00218",null,94252,7004,"SOUTH HOBART (HILLBOROUGH ROAD)","Yes"]
["ED_OEF374_00219",null,91350,7316,"SOUTH RIANA (JANSENS ROAD)","Yes"]
["ED_OEF374_00220",null,91365,7315,"SPRENT","Yes"]
["ED_OEF374_00221",null,92140,7216,"ST HELENS (GLIMPSE HILL)","No"]
["ED_OEF374_00222",null,92120,7216,"ST HELENS AERODROME","No"]
["ED_OEF374_00223",null,92161,7215,"ST MARYS (CAMERON STREET)","Yes"]
["ED_OEF374_00224",null,92009,7215,"ST MARYS (CULLENSWOOD)","Yes"]
["ED_OEF374_00225",null,92162,7215,"ST MARYS (HAREFIELD ROAD)","Yes"]
["ED_OEF374_00226",null,91088,7259,"ST PATRICKS RIVER (TARGA FARM)","Yes"]
["ED_OEF374_00227",null,93023,7119,"STONOR","No"]
["ED_OEF374_00228",null,97072,7468,"STRAHAN AERODROME","No"]
["ED_OEF374_00229",null,91260,7292,"STRATHBRIDGE (MEANDER RIVER)","Yes"]
["ED_OEF374_00230",null,97061,7139,"STRATHGORDON (GORDON POWER STATION)","Yes"]
["ED_OEF374_00231",null,97053,7139,"STRATHGORDON VILLAGE","Yes"]
["ED_OEF374_00232",null,92040,7190,"SWANSEA (BELMONT)","No"]
["ED_OEF374_00233",null,92148,7190,"SWANSEA (FRANCIS STREET)","No"]
["ED_OEF374_00234",null,97065,7139,"TAHUNE RESERVE","Yes"]
["ED_OEF374_00235",null,91305,7259,"TARGA (MOUNTAIN VIEWS)","Yes"]
["ED_OEF374_00236",null,94111,7053,"TAROONA (TAROONA CRESCENT)","Yes"]
["ED_OEF374_00237",null,94172,7017,"TEA TREE (THE POINT)","Yes"]
["ED_OEF374_00238",null,94204,7017,"TEA TREE POINT","Yes"]
["ED_OEF374_00239",null,91310,7264,"TELITA (KANARA NEIKA)","Yes"]
["ED_OEF374_00240",null,97030,7330,"TEMMA (TEMMA FARM)","No"]
["ED_OEF374_00241",null,96083,7030,"THE DEN","Yes"]
["ED_OEF374_00242",null,95059,7140,"TIM SHEA (SUMMIT)","Yes"]
["ED_OEF374_00243",null,96049,7030,"TODS CORNER","Yes"]
["ED_OEF374_00244",null,91173,7262,"TOMAHAWK (CARISBROOKE)","No"]
["ED_OEF374_00245",null,92079,7209,"TOOMS LAKE (TOOMS RIVER)","No"]
["ED_OEF374_00246",null,91308,7263,"TRENAH (GUM FLAT ROAD)","Yes"]
["ED_OEF374_00247",null,92157,7190,"TRIABUNNA (SALMONS FLATS)","Yes"]
["ED_OEF374_00248",null,93056,7120,"TUNBRIDGE (AUSTIN-VALE)","No"]
["ED_OEF374_00249",null,94195,7120,"TUNNACK FIRE STATION","No"]
["ED_OEF374_00250",null,91102,7315,"ULVERSTONE (KNIGHTS ROAD)","Yes"]
["ED_OEF374_00251",null,92109,7212,"UPPER BLESSINGTON","No"]
["ED_OEF374_00252",null,92111,7214,"UPPER ESK (SOUTH ESK RIVER)","No"]
["ED_OEF374_00253",null,97014,7321,"WARATAH (MOUNT ROAD)","Yes"]
["ED_OEF374_00254",null,97024,7139,"WARRA","Yes"]
["ED_OEF374_00255",null,94064,7172,"WATTLE HILL","Yes"]
["ED_OEF374_00256",null,95047,7140,"WAYATINAH (SALTAS)","Yes"]
["ED_OEF374_00257",null,92126,7264,"WELDBOROUGH","Yes"]
["ED_OEF374_00258",null,91236,7303,"WESTBURY (BIRRALEE ROAD)","Yes"]
["ED_OEF374_00259",null,91150,7304,"WESTERN CREEK (SOMER HILL)","Yes"]
["ED_OEF374_00260",null,95075,7140,"WESTERWAY (LEESONS ROAD)","Yes"]
["ED_OEF374_00261",null,91303,7290,"WESTWOOD BRIDGE (MEANDER RIVER)","Yes"]
["ED_OEF374_00262",null,91272,7252,"WEYMOUTH (TAM O'SHANTER)","No"]
["ED_OEF374_00263",null,99015,7255,"WHITEMARK POST OFFICE","No"]
["ED_OEF374_00264",null,91105,7310,"WILMOT (BACK ROAD)","Yes"]
["ED_OEF374_00265",null,91095,7252,"WINDERMERE (ACACIA HOUSE)","Yes"]
["ED_OEF374_00266",null,94068,7162,"WOODBRIDGE","Yes"]
["ED_OEF374_00267",null,91299,7260,"WOODLEA NURSERY","Yes"]
["ED_OEF374_00268",null,94207,7120,"WOODSDALE (STALWORTH)","Yes"]
["ED_OEF374_00269",null,91107,7325,"WYNYARD AIRPORT","Yes"]
["ED_OEF374_00270",null,94190,7027,"YARLINGTON (BLACKS PINNACLE)","Yes"]
["ED_OEF374_00271",null,91109,7325,"YOLLA (SEA VIEW)","Yes"]
["ED_OEF374_00272",null,93007,7120,"YORK PLAINS (HANDROYD)","No"]
["ED_OEF374_00273",null,93058,7120,"YORK PLAINS (INVERELL)","No"]
["ED_OEF374_00274",null,97054,7469,"ZEEHAN (WEST COAST PIONEERS MUSEUM)","Yes"]
["ED_OEF374_00275"]
["ED_OEF374_00276"]
["ED_OEF374_00277"]
["ED_OEF374_00278"]
["ED_OEF374_00279"]
["ED_OEF374_00280"]
["ED_OEF374_00281"]
["ED_OEF374_00282"]
["ED_OEF374_00283"]
["ED_OEF374_00284"]
["ED_OEF374_00285"]
["ED_OEF374_00286"]
["ED_OEF374_00287"]
["ED_OEF374_00288"]
["ED_OEF374_00289"]
["ED_OEF374_00290"]
["ED_OEF374_00291"]
["ED_OEF374_00292"]
["ED_OEF374_00293"]
["ED_OEF374_00294"]
["ED_OEF374_00295"]
["ED_OEF374_00296"]
["ED_OEF374_00297"]
["ED_OEF374_00298"]
["ED_OEF374_00299"]
["ED_OEF374_00300"]
["ED_OEF374_00301"]
["ED_OEF374_00302"]
["ED_OEF374_00303"]
["ED_OEF374_00304"]
["ED_OEF374_00305"]
["ED_OEF374_00306"]
["ED_OEF374_00307"]
["ED_OEF374_00308"]
["ED_OEF374_00309"]
["ED_OEF374_00310"]
["ED_OEF374_00311"]
["ED_OEF374_00312"]
["ED_OEF374_00313"]
["ED_OEF374_00314"]
["ED_OEF374_00315"]
["ED_OEF374_00316"]
["ED_OEF374_00317"]
["ED_OEF374_00318"]
["ED_OEF374_00319"]
["ED_OEF374_00320"]
["ED_OEF374_00321"]
["ED_OEF374_00322"]
["ED_OEF374_00323"]
["ED_OEF374_00324"]
["ED_OEF374_00325"]
["ED_OEF374_00326"]
["ED_OEF374_00327"]
["ED_OEF374_00328"]
["ED_OEF374_00329"]
["ED_OEF374_00330"]
["ED_OEF374_00331"]
["ED_OEF374_00332"]
["ED_OEF374_00333"]
["ED_OEF374_00334"]
["ED_OEF374_00335"]
["ED_OEF374_00336"]
["ED_OEF374_00337"]
["ED_OEF374_00338"]
["ED_OEF374_00339"]
["ED_OEF374_00340"]
["ED_OEF374_00341"]
["ED_OEF374_00342"]
["ED_OEF374_00343"]
["ED_OEF374_00344"]
["ED_OEF374_00345"]
["ED_OEF374_00346"]
["ED_OEF374_00347"]
["ED_OEF374_00348"]
["ED_OEF374_00349"]
["ED_OEF374_00350"]
["ED_OEF374_00351"]
["ED_OEF374_00352"]
["ED_OEF374_00353"]
["ED_OEF374_00354"]
["ED_OEF374_00355"]
["ED_OEF374_00356"]
["ED_OEF374_00357"]
["ED_OEF374_00358"]
["ED_OEF374_00359"]
["ED_OEF374_00360"]
["ED_OEF374_00361"]
["ED_OEF374_00362"]
["ED_OEF374_00363"]
["ED_OEF374_00364"]
["ED_OEF374_00365"]
["ED_OEF374_00366"]
["ED_OEF374_00367"]
["ED_OEF374_00368"]
["ED_OEF374_00369"]
["ED_OEF374_00370"]
["ED_OEF374_00371"]
["ED_OEF374_00372"]
["ED_OEF374_00373"]
["ED_OEF374_00374"]
["ED_OEF374_00375"]
["ED_OEF374_00376"]
["ED_OEF374_00377"]
["ED_OEF374_00378"]
["ED_OEF374_00379"]
["ED_OEF374_00380"]
["ED_OEF374_00381"]
["ED_OEF374_00382"]
["ED_OEF374_00383"]
["ED_OEF374_00384"]
["ED_OEF374_00385"]
["ED_OEF374_00386"]
["ED_OEF374_00387"]
["ED_OEF374_00388"]
["ED_OEF374_00389"]
["ED_OEF374_00390"]
["ED_OEF374_00391"]
["ED_OEF374_00392"]
["ED_OEF374_00393"]
["ED_OEF374_00394"]
["ED_OEF374_00395"]
["ED_OEF374_00396"]
["ED_OEF374_00397"]
["ED_OEF374_00398"]
["ED_OEF374_00399"]
["ED_OEF374_00400"]
["ED_OEF374_00401"]
["ED_OEF374_00402"]
["ED_OEF374_00403"]
["ED_OEF374_00404"]
["ED_OEF374_00405"]
["ED_OEF374_00406"]
["ED_OEF374_00407"]
["ED_OEF374_00408"]
["ED_OEF374_00409"]
["ED_OEF374_00410"]
["ED_OEF374_00411"]
["ED_OEF374_00412"]
["ED_OEF374_00413"]
["ED_OEF374_00414"]
["ED_OEF374_00415"]
["ED_OEF374_00416"]
["ED_OEF374_00417"]
["ED_OEF374_00418"]
["ED_OEF374_00419"]
["ED_OEF374_00420"]
["ED_OEF374_00421"]
["ED_OEF374_00422"]
["ED_OEF374_00423"]
["ED_OEF374_00424"]
["ED_OEF374_00425"]
["ED_OEF374_00426"]
["ED_OEF374_00427"]
["ED_OEF374_00428"]
["ED_OEF374_00429"]
["ED_OEF374_00430"]
["ED_OEF374_00431"]
["ED_OEF374_00432"]
["ED_OEF374_00433"]
["ED_OEF374_00434"]
["ED_OEF374_00435"]
["ED_OEF374_00436"]
["ED_OEF374_00437"]
["ED_OEF374_00438"]
["ED_OEF374_00439"]
["ED_OEF374_00440"]
["ED_OEF374_00441"]
["ED_OEF374_00442"]
["ED_OEF374_00443"]
["ED_OEF374_00444"]
["ED_OEF374_00445"]
["ED_OEF374_00446"]
["ED_OEF374_00447"]
["ED_OEF374_00448"]
["ED_OEF374_00449"]
["ED_OEF374_00450"]
["ED_OEF374_00451"]
["ED_OEF374_00452"]
["ED_OEF374_00453"]
["ED_OEF374_00454"]
["ED_OEF374_00455"]
["ED_OEF374_00456"]
["ED_OEF374_00457"]
["ED_OEF374_00458"]
["ED_OEF374_00459"]
["ED_OEF374_00460"]
["ED_OEF374_00461"]
["ED_OEF374_00462"]
["ED_OEF374_00463"]
["ED_OEF374_00464"]
["ED_OEF374_00465"]
["ED_OEF374_00466"]
["ED_OEF374_00467"]
["ED_OEF374_00468"]
["ED_OEF374_00469"]
["ED_OEF374_00470"]
["ED_OEF374_00471"]
["ED_OEF374_00472"]
["ED_OEF374_00473"]
["ED_OEF374_00474"]
["ED_OEF374_00475"]
["ED_OEF374_00476"]
["ED_OEF374_00477"]
["ED_OEF374_00478"]
["ED_OEF374_00479"]
["ED_OEF374_00480"]
["ED_OEF374_00481"]
["ED_OEF374_00482"]
["ED_OEF374_00483"]
["ED_OEF374_00484"]
["ED_OEF374_00485"]
["ED_OEF374_00486"]
["ED_OEF374_00487"]
["ED_OEF374_00488"]
["ED_OEF374_00489"]
["ED_OEF374_00490"]
["ED_OEF374_00491"]
["ED_OEF374_00492"]
["ED_OEF374_00493"]
["ED_OEF374_00494"]
["ED_OEF374_00495"]
["ED_OEF374_00496"]
["ED_OEF374_00497"]
["ED_OEF374_00498"]
["ED_OEF374_00499"]
["ED_OEF374_00500"]
["ED_OEF374_00501"]
["ED_OEF374_00502"]
["ED_OEF374_00503"]
["ED_OEF374_00504"]
["ED_OEF374_00505"]
["ED_OEF374_00506"]
["ED_OEF374_00507"]
["ED_OEF374_00508"]
["ED_OEF374_00509"]
["ED_OEF374_00510"]
["ED_OEF374_00511"]
["ED_OEF374_00512"]
["ED_OEF374_00513"]
["ED_OEF374_00514"]
["ED_OEF374_00515"]
["ED_OEF374_00516"]
["ED_OEF374_00517"]
["ED_OEF374_00518"]
["ED_OEF374_00519"]
["ED_OEF374_00520"]
["ED_OEF374_00521"]
["ED_OEF374_00522"]
["ED_OEF374_00523"]
["ED_OEF374_00524"]
["ED_OEF374_00525"]
["ED_OEF374_00526"]
["ED_OEF374_00527"]
["ED_OEF374_00528"]
["ED_OEF374_00529"]
["ED_OEF374_00530"]
["ED_OEF374_00531"]
["ED_OEF374_00532"]
["ED_OEF374_00533"]
["ED_OEF374_00534"]
["ED_OEF374_00535"]
["ED_OEF374_00536"]
["ED_OEF374_00537"]
["ED_OEF374_00538"]
["ED_OEF374_00539"]
["ED_OEF374_00540"]
["ED_OEF374_00541"]
["ED_OEF374_00542"]
["ED_OEF374_00543"]
["ED_OEF374_00544"]
["ED_OEF374_00545"]
["ED_OEF374_00546"]
["ED_OEF374_00547"]
["ED_OEF374_00548"]
["ED_OEF374_00549"]
["ED_OEF374_00550"]
["ED_OEF374_00551"]
["ED_OEF374_00552"]
["ED_OEF374_00553"]
["ED_OEF374_00554"]
["ED_OEF374_00555"]
["ED_OEF374_00556"]
["ED_OEF374_00557"]
["ED_OEF374_00558"]
["ED_OEF374_00559"]
["ED_OEF374_00560"]
["ED_OEF374_00561"]
["ED_OEF374_00562"]
["ED_OEF374_00563"]
["ED_OEF374_00564"]
["ED_OEF374_00565"]
["ED_OEF374_00566"]
["ED_OEF374_00567"]
["ED_OEF374_00568"]
["ED_OEF374_00569"]
["ED_OEF374_00570"]
["ED_OEF374_00571"]
["ED_OEF374_00572"]
["ED_OEF374_00573"]
["ED_OEF374_00574"]
["ED_OEF374_00575"]
["ED_OEF374_00576"]
["ED_OEF374_00577"]
["ED_OEF374_00578"]
["ED_OEF374_00579"]
["ED_OEF374_00580"]
["ED_OEF374_00581"]
["ED_OEF374_00582"]
["ED_OEF374_00583"]
["ED_OEF374_00584"]
["ED_OEF374_00585"]
["ED_OEF374_00586"]
["ED_OEF374_00587"]
["ED_OEF374_00588"]
["ED_OEF374_00589"]
["ED_OEF374_00590"]
["ED_OEF374_00591"]
["ED_OEF374_00592"]
["ED_OEF374_00593"]
["ED_OEF374_00594"]
["ED_OEF374_00595"]
["ED_OEF374_00596"]
["ED_OEF374_00597"]
["ED_OEF374_00598"]
["ED_OEF374_00599"]
["ED_OEF374_00600"]
["ED_OEF374_00601"]
["ED_OEF374_00602"]
["ED_OEF374_00603"]
["ED_OEF374_00604"]
["ED_OEF374_00605"]
["ED_OEF374_00606"]
["ED_OEF374_00607"]
["ED_OEF374_00608"]
["ED_OEF374_00609"]
["ED_OEF374_00610"]
["ED_OEF374_00611"]
["ED_OEF374_00612"]
["ED_OEF374_00613"]
["ED_OEF374_00614"]
["ED_OEF374_00615"]
["ED_OEF374_00616"]
["ED_OEF374_00617"]
["ED_OEF374_00618"]
["ED_OEF374_00619"]
["ED_OEF374_00620"]
["ED_OEF374_00621"]
["ED_OEF374_00622"]
["ED_OEF374_00623"]
["ED_OEF374_00624"]
["ED_OEF374_00625"]
["ED_OEF374_00626"]
["ED_OEF374_00627"]
["ED_OEF374_00628"]
["ED_OEF374_00629"]
["ED_OEF374_00630"]
["ED_OEF374_00631"]
["ED_OEF374_00632"]
["ED_OEF374_00633"]
["ED_OEF374_00634"]
["ED_OEF374_00635"]
["ED_OEF374_00636"]
["ED_OEF374_00637"]
["ED_OEF374_00638"]
["ED_OEF374_00639"]
["ED_OEF374_00640"]
["ED_OEF374_00641"]
["ED_OEF374_00642"]
["ED_OEF374_00643"]
["ED_OEF374_00644"]
["ED_OEF374_00645"]
["ED_OEF374_00646"]
["ED_OEF374_00647"]
["ED_OEF374_00648"]
["ED_OEF374_00649"]
["ED_OEF374_00650"]
["ED_OEF374_00651"]
["ED_OEF374_00652"]
["ED_OEF374_00653"]
["ED_OEF374_00654"]
["ED_OEF374_00655"]
["ED_OEF374_00656"]
["ED_OEF374_00657"]
["ED_OEF374_00658"]
["ED_OEF374_00659"]
["ED_OEF374_00660"]
["ED_OEF374_00661"]
["ED_OEF374_00662"]
["ED_OEF374_00663"]
["ED_OEF374_00664"]
["ED_OEF374_00665"]
["ED_OEF374_00666"]
["ED_OEF374_00667"]
["ED_OEF374_00668"]
["ED_OEF374_00669"]
["ED_OEF374_00670"]
["ED_OEF374_00671"]
["ED_OEF374_00672"]
["ED_OEF374_00673"]
["ED_OEF374_00674"]
["ED_OEF374_00675"]
["ED_OEF374_00676"]
["ED_OEF374_00677"]
["ED_OEF374_00678"]
["ED_OEF374_00679"]
["ED_OEF374_00680"]
["ED_OEF374_00681"]
["ED_OEF374_00682"]
["ED_OEF374_00683"]
["ED_OEF374_00684"]
["ED_OEF374_00685"]
["ED_OEF374_00686"]
["ED_OEF374_00687"]
["ED_OEF374_00688"]
["ED_OEF374_00689"]
["ED_OEF374_00690"]
["ED_OEF374_00691"]
["ED_OEF374_00692"]
["ED_OEF374_00693"]
["ED_OEF374_00694"]
["ED_OEF374_00695"]
["ED_OEF374_00696"]
["ED_OEF374_00697"]
["ED_OEF374_00698"]
["ED_OEF374_00699"]
["ED_OEF374_00700"]
["ED_OEF374_00701"]
["ED_OEF374_00702"]
["ED_OEF374_00703"]
["ED_OEF374_00704"]
["ED_OEF374_00705"]
["ED_OEF374_00706"]
["ED_OEF374_00707"]
["ED_OEF374_00708"]
["ED_OEF374_00709"]
["ED_OEF374_00710"]
["ED_OEF374_00711"]
["ED_OEF374_00712"]
["ED_OEF374_00713"]
["ED_OEF374_00714"]
["ED_OEF374_00715"]
["ED_OEF374_00716"]
["ED_OEF374_00717"]
["ED_OEF374_00718"]
["ED_OEF374_00719"]
["ED_OEF374_00720"]
["ED_OEF374_00721"]
["ED_OEF374_00722"]
["ED_OEF374_00723"]
["ED_OEF374_00724"]
["ED_OEF374_00725"]
["ED_OEF374_00726"]
["ED_OEF374_00727"]
["ED_OEF374_00728"]
["ED_OEF374_00729"]
["ED_OEF374_00730"]
["ED_OEF374_00731"]
["ED_OEF374_00732"]
["ED_OEF374_00733"]
["ED_OEF374_00734"]
["ED_OEF374_00735"]
["ED_OEF374_00736"]
["ED_OEF374_00737"]
["ED_OEF374_00738"]
["ED_OEF374_00739"]
["ED_OEF374_00740"]
["ED_OEF374_00741"]
["ED_OEF374_00742"]
["ED_OEF374_00743"]
["ED_OEF374_00744"]
["ED_OEF374_00745"]
["ED_OEF374_00746"]
["ED_OEF374_00747"]
["ED_OEF374_00748"]
["ED_OEF374_00749"]
["ED_OEF374_00750"]
["ED_OEF374_00751"]
["ED_OEF374_00752"]
["ED_OEF374_00753"]
["ED_OEF374_00754"]
["ED_OEF374_00755"]
["ED_OEF374_00756"]
["ED_OEF374_00757"]
["ED_OEF374_00758"]
["ED_OEF374_00759"]
["ED_OEF374_00760"]
["ED_OEF374_00761"]
["ED_OEF374_00762"]
["ED_OEF374_00763"]
["ED_OEF374_00764"]
["ED_OEF374_00765"]
["ED_OEF374_00766"]
["ED_OEF374_00767"]
["ED_OEF374_00768"]
["ED_OEF374_00769"]
["ED_OEF374_00770"]
["ED_OEF374_00771"]
["ED_OEF374_00772"]
["ED_OEF374_00773"]
["ED_OEF374_00774"]
["ED_OEF374_00775"]
["ED_OEF374_00776"]
["ED_OEF374_00777"]
["ED_OEF374_00778"]
["ED_OEF374_00779"]
["ED_OEF374_00780"]
["ED_OEF374_00781"]
["ED_OEF374_00782"]
["ED_OEF374_00783"]
["ED_OEF374_00784"]
["ED_OEF374_00785"]
["ED_OEF374_00786"]
["ED_OEF374_00787"]
["ED_OEF374_00788"]
["ED_OEF374_00789"]
["ED_OEF374_00790"]
["ED_OEF374_00791"]
["ED_OEF374_00792"]
["ED_OEF374_00793"]
["ED_OEF374_00794"]
["ED_OEF374_00795"]
["ED_OEF374_00796"]
["ED_OEF374_00797"]
["ED_OEF374_00798"]
["ED_OEF374_00799"]
["ED_OEF374_00800"]
["ED_OEF374_00801"]
["ED_OEF374_00802"]
["ED_OEF374_00803"]
["ED_OEF374_00804"]
["ED_OEF374_00805"]
["ED_OEF374_00806"]
["ED_OEF374_00807"]
["ED_OEF374_00808"]
["ED_OEF374_00809"]
["ED_OEF374_00810"]
["ED_OEF374_00811"]
["ED_OEF374_00812"]
["ED_OEF374_00813"]
["ED_OEF374_00814"]
["ED_OEF374_00815"]
["ED_OEF374_00816"]
["ED_OEF374_00817"]
["ED_OEF374_00818"]
["ED_OEF374_00819"]
["ED_OEF374_00820"]
["ED_OEF374_00821"]
["ED_OEF374_00822"]
["ED_OEF374_00823"]
["ED_OEF374_00824"]
["ED_OEF374_00825"]
["ED_OEF374_00826"]
["ED_OEF374_00827"]
["ED_OEF374_00828"]
["ED_OEF374_00829"]
["ED_OEF374_00830"]
["ED_OEF374_00831"]
["ED_OEF374_00832"]
["ED_OEF374_00833"]
["ED_OEF374_00834"]
["ED_OEF374_00835"]
["ED_OEF374_00836"]
["ED_OEF374_00837"]
["ED_OEF374_00838"]
["ED_OEF374_00839"]
["ED_OEF374_00840"]
["ED_OEF374_00841"]
["ED_OEF374_00842"]
["ED_OEF374_00843"]
["ED_OEF374_00844"]
["ED_OEF374_00845"]
["ED_OEF374_00846"]
["ED_OEF374_00847"]
["ED_OEF374_00848"]
["ED_OEF374_00849"]
["ED_OEF374_00850"]
["ED_OEF374_00851"]
["ED_OEF374_00852"]
["ED_OEF374_00853"]
["ED_OEF374_00854"]
["ED_OEF374_00855"]
["ED_OEF374_00856"]
["ED_OEF374_00857"]
["ED_OEF374_00858"]
["ED_OEF374_00859"]
["ED_OEF374_00860"]
["ED_OEF374_00861"]
["ED_OEF374_00862"]
["ED_OEF374_00863"]
["ED_OEF374_00864"]
["ED_OEF374_00865"]
["ED_OEF374_00866"]
["ED_OEF374_00867"]
["ED_OEF374_00868"]
["ED_OEF374_00869"]
["ED_OEF374_00870"]
["ED_OEF374_00871"]
["ED_OEF374_00872"]
["ED_OEF374_00873"]
["ED_OEF374_00874"]
["ED_OEF374_00875"]
["ED_OEF374_00876"]
["ED_OEF374_00877"]
["ED_OEF374_00878"]
["ED_OEF374_00879"]
["ED_OEF374_00880"]
["ED_OEF374_00881"]
["ED_OEF374_00882"]
["ED_OEF374_00883"]
["ED_OEF374_00884"]
["ED_OEF374_00885"]
["ED_OEF374_00886"]
["ED_OEF374_00887"]
["ED_OEF374_00888"]
["ED_OEF374_00889"]
["ED_OEF374_00890"]
["ED_OEF374_00891"]
["ED_OEF374_00892"]
["ED_OEF374_00893"]
["ED_OEF374_00894"]
["ED_OEF374_00895"]
["ED_OEF374_00896"]
["ED_OEF374_00897"]
["ED_OEF374_00898"]
["ED_OEF374_00899"]
["ED_OEF374_00900"]
["ED_OEF374_00901"]
["ED_OEF374_00902"]
["ED_OEF374_00903"]
["ED_OEF374_00904"]
["ED_OEF374_00905"]
["ED_OEF374_00906"]
["ED_OEF374_00907"]
["ED_OEF374_00908"]
["ED_OEF374_00909"]
["ED_OEF374_00910"]
["ED_OEF374_00911"]
["ED_OEF374_00912"]
["ED_OEF374_00913"]
["ED_OEF374_00914"]
["ED_OEF374_00915"]
["ED_OEF374_00916"]
["ED_OEF374_00917"]
["ED_OEF374_00918"]
["ED_OEF374_00919"]
["ED_OEF374_00920"]
["ED_OEF374_00921"]
["ED_OEF374_00922"]
["ED_OEF374_00923"]
["ED_OEF374_00924"]
["ED_OEF374_00925"]
["ED_OEF374_00926"]
["ED_OEF374_00927"]
["ED_OEF374_00928"]
["ED_OEF374_00929"]
["ED_OEF374_00930"]
["ED_OEF374_00931"]
["ED_OEF374_00932"]
["ED_OEF374_00933"]
["ED_OEF374_00934"]
["ED_OEF374_00935"]
["ED_OEF374_00936"]
["ED_OEF374_00937"]
["ED_OEF374_00938"]
["ED_OEF374_00939"]
["ED_OEF374_00940"]
["ED_OEF374_00941"]
["ED_OEF374_00942"]
["ED_OEF374_00943"]
["ED_OEF374_00944"]
["ED_OEF374_00945"]
["ED_OEF374_00946"]
["ED_OEF374_00947"]
["ED_OEF374_00948"]
["ED_OEF374_00949"]
["ED_OEF374_00950"]
["ED_OEF374_00951"]
["ED_OEF374_00952"]
["ED_OEF374_00953"]
["ED_OEF374_00954"]
["ED_OEF374_00955"]
["ED_OEF374_00956"]
["ED_OEF374_00957"]
["ED_OEF374_00958"]
["ED_OEF374_00959"]
["ED_OEF374_00960"]
["ED_OEF374_00961"]
["ED_OEF374_00962"]
["ED_OEF374_00963"]
["ED_OEF374_00964"]
["ED_OEF374_00965"]
["ED_OEF374_00966"]
["ED_OEF374_00967"]
["ED_OEF374_00968"]
["ED_OEF374_00969"]
["ED_OEF374_00970"]
["ED_OEF374_00971"]
["ED_OEF374_00972"]
["ED_OEF374_00973"]
["ED_OEF374_00974"]
["ED_OEF374_00975"]
["ED_OEF374_00976"]
["ED_OEF374_00977"]
["ED_OEF374_00978"]
["ED_OEF374_00979"]
["ED_OEF374_00980"]
["ED_OEF374_00981"]
["ED_OEF374_00982"]
["ED_OEF374_00983"]
["ED_OEF374_00984"]
["ED_OEF374_00985"]
["ED_OEF374_00986"]
["ED_OEF374_00987"]
["ED_OEF374_00988"]
["ED_OEF374_00989"]
["ED_OEF374_00990"]
["ED_OEF374_00991"]
["ED_OEF374_00992"]
["ED_OEF374_00993"]
["ED_OEF374_00994"]
["ED_OEF374_00995"]
["ED_OEF374_00996"]
["ED_OEF374_00997"]
["ED_OEF374_00998"]
["ED_OEF374_00999"]
["ED_OEF374_01000"]
["ED_OEF374_01001"]
["ED_OEF374_01002"]
["ED_OEF374_01003"]
["ED_OEF374_01004"]
["ED_OEF374_01005"]
["ED_OEF374_01006"]
["ED_OEF374_01007"]
["ED_OEF374_01008"]
["ED_OEF374_01009"]
["ED_OEF374_01010"]
["ED_OEF374_01011"]
["ED_OEF374_01012"]
["ED_OEF374_01013"]
["ED_OEF374_01014"]
["ED_OEF374_01015"]
["ED_OEF374_01016"]
["ED_OEF374_01017"]
["ED_OEF374_01018"]
["ED_OEF374_01019"]
["ED_OEF374_01020"]
["ED_OEF374_01021"]
["ED_OEF374_01022"]
["ED_OEF374_01023"]
["ED_OEF374_01024"]
["ED_OEF374_01025"]
["ED_OEF374_01026"]
["ED_OEF374_01027"]
["ED_OEF374_01028"]
["ED_OEF374_01029"]
["ED_OEF374_01030"]
["ED_OEF374_01031"]
["ED_OEF374_01032"]
["ED_OEF374_01033"]
["ED_OEF374_01034"]
["ED_OEF374_01035"]
["ED_OEF374_01036"]
["ED_OEF374_01037"]
["ED_OEF374_01038"]
["ED_OEF374_01039"]
["ED_OEF374_01040"]
["ED_OEF374_01041"]
["ED_OEF374_01042"]
["ED_OEF374_01043"]
["ED_OEF374_01044"]
["ED_OEF374_01045"]
["ED_OEF374_01046"]
["ED_OEF374_01047"]
["ED_OEF374_01048"]
["ED_OEF374_01049"]
["ED_OEF374_01050"]
["ED_OEF374_01051"]
["ED_OEF374_01052"]
["ED_OEF374_01053"]
["ED_OEF374_01054"]
["ED_OEF374_01055"]
["ED_OEF374_01056"]
["ED_OEF374_01057"]
["ED_OEF374_01058"]
["ED_OEF374_01059"]
["ED_OEF374_01060"]
["ED_OEF374_01061"]
["ED_OEF374_01062"]
["ED_OEF374_01063"]
["ED_OEF374_01064"]
["ED_OEF374_01065"]
["ED_OEF374_01066"]
["ED_OEF374_01067"]
["ED_OEF374_01068"]
["ED_OEF374_01069"]
["ED_OEF374_01070"]
["ED_OEF374_01071"]
["ED_OEF374_01072"]
["ED_OEF374_01073"]
["ED_OEF374_01074"]
["ED_OEF374_01075"]
["ED_OEF374_01076"]
["ED_OEF374_01077"]
["ED_OEF374_01078"]
["ED_OEF374_01079"]
["ED_OEF374_01080"]
["ED_OEF374_01081"]
["ED_OEF374_01082"]
["ED_OEF374_01083"]
["ED_OEF374_01084"]
["ED_OEF374_01085"]
["ED_OEF374_01086"]
["ED_OEF374_01087"]
["ED_OEF374_01088"]
["ED_OEF374_01089"]
["ED_OEF374_01090"]
["ED_OEF374_01091"]

{"sheet":"Unlocked worksheet","index":11,"n_rows":0,"n_cols":0,"rows_kept":0,"cut":false,"hidden":false,"merged":[]}